Workbook

Sheet Introduction
D3: Buy/Sell Margin Calculator
D4: Version 9.0
B6: Emmit L. Rawls | I6: Becky Bowling
B7: Professor Emeritus | I7: Extension Specialist
B8: Office: (865) 974-7271 Email: elrawls@utk.edu | H8: Office: (865) 974-7016 Email: rbowlin2@utk.edu
B10: Tammy L. McKinley
B11: IT Solutions Specialist
B12: Office: (865) 974-6545 Email: mckinley@utk.edu
B14: The buy/sell margin (the difference between a feeder calf or yearling purchase price and a sale price at some later date) is
B15: a critical component in the profitability of beef cattle backgrounding and finishing systems. In fact, the margin can make
B16: or break a producer in a single year.
B18: This program allows you to look at historical buy/sell margins for buy-sell periods that you select for steers, heifers,
B19: Holstein steers, and finished cattle (5-Market Area).
B21: These historical buy/sell margins can give you some feel for the price risk exposure on purchased cattle as well as calves
B22: from a cow/calf program. The absolute buy/sell margins in dollars per hundredweight are one measure of price risk.
B24: The BSM Calculator will calculate the minimum (worst), average, and maximum (best) buy/sell margins for the past 10 years
B25: based on your selections of both buying and selling months, state, sex, weight ranges, and grades.
B27: To learn more about the buy/sell margin and the Buy/Sell Margin Calculator click on the User's Guide button below.
B32: To begin click on the Calculator button below. Only those values shown in blue text and the dropdown boxes are available
B33: for you to change. You can navigate through the cells by using the arrow keys or the tab key. To change a value, select
B34: the cell, enter the new value and press enter. When changing your input selections, to ensure that all calculations are made
B35: correctly reset the input selections by clicking the Reset button. To return to this introduction page, click on the Intro button.
B40: For technical support, contact Becky Bowling at the contact information above.
B49: Programs in agriculture and natural resources, 4-H youth development, family and consumer sciences, and resource development.
B50: University of Tennessee Institute of Agriculture, U.S. Department of Agriculture and country governments cooperating.
B51: UT Extension provide equal opportunities in programs and employment.

Sheet User's Guide
B2: The Buy/Sell Margin Calculator User's Guide
B4: The buy/sell margin (the difference between a feeder calf or yearling purchase price and a sale price at some later date) is a critical component in the profitability of beef cattle backgrounding and finishing systems. In fact, the margin can make or break a producer in a single year.
B8: Buy/sell margins are calculated as follows: cattle sale price - cattle purchase price = buy/sell margin
B10: This program allows you to look at historical buy/sell margins for buy-sell periods that you select for heifers and steers. These historical buy/sell margins can give you some feel for the price risk exposure on purchased cattle as well as calves from a cow/calf program. The absolute buy/sell margins in dollars per hundredweight are one measure of price risk. The buy/sell margin is usually negative due to increase in weight, but it can be steady to positive depending on the time period being considered. The buy/sell margin can also be steady to positive if the grade of the cattle increases during the growing-finishing process.
B16: As a beef producer, backgrounder, or feeder you must look at these margins relative to your estimated cost of gain. The negative buy/sell margin that you can tolerate and still break even is primarily a function of the relationship between the purchase price and the cost of gain. There are a few points you will want to keep in mind when looking at the margins calculated in the Buy/Sell Margins (BSM) Calculator and comparing these to your estimated cost of gain. First, remember that if the cost of gain exceeds the purchase price, a positive buy/sell margin will be required to realize a profit. The second is that a cost of gain below the purchase price will permit a negative buy/sell margin. And finally, if the cost of gain is the same as the purchase price, the break-even price will also be equal to the purchase price.
B24: Prices used in this program to calculate the historical buy/sell margins are the monthly averages from livestock auctions in Tennessee and Georgia and feedlots in Texas-Oklahoma, Kansas, Nebraska, Colorado, Iowa-Minnesota (5-Market Area). The prices from the 5-Market Area were compiled by Livestock Marketing Information Center from federal and state Market News data. The use of these averages does limit the program, because averages smooth out the actual highs and lows in the daily/weekly prices at these markets. You can however, see the general trend in prices using the monthly averages, and seasonal tendencies can be used to determine the "best" months for buying and selling cattle.
B31: The BSM Calculator will calculate the minimum (worst), average, and maximum (best) buy/sell margins for the past 10 years based on your selections of buying and selling months, state, sex, weight ranges, and grades.
B34: Special Options
B35: There are several special cases considered in the BSM Calculator, the first of which is the buying and selling of Holstein steers for a backgrounding program. The grade used for the Holstein steers is Large Frame No. 2. This is the only grade available for Holstein steers. This option is available for Tennessee only.
B39: The second special case considered in the BSM Calculator is that of buying and/or selling a mix of Medium Frame No. 1 and Medium Frame No. 2 cattle. Some producers may choose to purchase either all Medium Frame No. 2 or a mix of Medium Frame No. 2 and Medium Frame No. 1 cattle, planning on some of them upgrading to No. 1 at a heavier weight. The program allows the user to select the percentage of cattle that are expected to be purchased or sold as Medium Frame No. 1. This percentage is then used to calculate weighted average buy/sell margins for the past ten years for either buying or selling Medium Frame No. 1 and Medium Frame No. 2 cattle at the selected weight range and in the selected months. The minimum, average, and maximum buy/sell margins reported are based on the weighted average buy/sell margins. This option is available for Tennessee only.
B47: The next special case considered is that of buying and/or selling 50,000 lbs. loads of Medium Frame No. 1 cattle. The load lot prices are from multiple auction markets and video sales across Tennessee. This option is available for Tennessee 700-800 lbs. steers and heifers and 800-900 lbs. steers only.
B51: The final special case considered in the BSM Calculator is that of selling finished cattle from a feedlot in the 5-Market Area. This option is available by choosing "5-Market Area Finished" as the selling state. No grade will be listed and the weight range will be 1100-1300 pounds used for all finished cattle sold from the 5-Market Area. The 5-Market Area feedlot prices are from Texas-Oklahoma, Kansas, Nebraska, Colorado, and Iowa-Minnesota for Choice finished cattle. The same market prices are used for finished heifers and steers. If retaining ownership, the freight charge to move cattle from TN needs to be included in the cost of gain calculation.
B58: Value of Gain
B59: In any backgrounding/stocker operation the key to profitability is the value of gain exceeding the cost of gain or, in other words, when the value of the added weight exceeds the cost to put on that weight. The value of gain (VOG) is calculated by dividing the difference in beginning and ending values by the total weight gained or
C62: ((sale price * sale weight) - (purchase price * purchase weight))
C63: total weight gained
B64: The VOG increases when either the selling price increases causing the animal’s ending value to increase or the purchase price decreases causing the animal's beginning value to decrease. The VOG will also increase as the buy/sell margin becomes less negative or more positive due to either an increase in the sale price increasing the ending value of the animal or a decrease in the purchase price decreasing the beginning value of the animal. If purchase and sale prices are equal, the VOG will be equal to the purchase and sale price.
B70: Selling Price as a Percentage of Buying Price
B71: The selling price as a percentage of buying price is another way of using the buy/sell margins which can make you aware of the percentage of the buying price you can expect to receive as a selling price at a later date. You may also use the average percentage to predict your selling price from an actual buying price. The projected price assumes the future percentage would be the same as the past, on average. Again, these percentages are based on the selections you made on the input screen.
B76: Available Options
B78: Item | C78: Options
B79: State | C79: TN
C80: GA
C81: 5-Market Area Finished
B82: Sex | C82: Heifer
C83: Steer
C84: Holstein Steer**
B85: Grade | C85: Medium Frame No.1
C86: Medium Frame No. 2
C87: Mix of No. 1 and No. 2***
C88: Large Frame No. 2**
B89: Weight Range | C89: 300-400 lbs
C90: 400-500 lbs
C91: 500-600 lbs
C92: 600-700 lbs
C93: 700-800 lbs
C94: 700-800 lbs Loads ***
C95: 800-900 lbs Loads ***
C96: 1100-1300 lbs*
B97: Month | C97: JAN
C98: FEB
C99: MAR
C100: APR
C101: MAY
C102: JUN
C103: JUL
C104: AUG
C105: SEP
C106: OCT
C107: NOV
C108: DEC
B110: * | C110: Southern Plains feedlot prices are from Texas-Oklahoma, Kansas, Nebraska, Colorado, and Iowa-Minnesota for Choice finished cattle. The same market prices are used for finished heifers and steers. In budgeting a finishing system, a freight charge of $3-$4 per cwt should be added to transport cattle to a custom feedlot.
B113: ** | C113: A grade of Large Frame No. 2 is used for Holstein steers for the buying and selling months. This option is available for only Tennessee.
B115: *** | C115: This option is available for only Tennessee.

Sheet BSM Calculator
C2: Buy/Sell Margins Calculator - Input
C5: Sex
C7: Beginning State | H7: Ending State
C9: Beginning month | H9: Ending month
C11: Beginning weight | E11: 300-400 | H11: Ending weight | J11: 400-500
C13: Beginning grade | H13: Ending grade
C15: Percent Medium #1 | H15: Percent Medium #1
B18: Historical Buy/Sell Margins - Results
B19: Selling Month | E19: Buying Month
B20: Year | C20: M1 Price | D20: M2 Price | E20: Year | F20: M1 Price | G20: M2 Price | H20: Buy/Sell Margin | J20: Value of Gain | L20: Selling Price as % of Buying Price
C21: ----------- $/cwt ----------- | F21: ----------- $/cwt ----------- | H21: $/cwt | J21: $/cwt
B22: =historicalpricesyr2 -> 2016 | C22: ='BSM Calculator'!G141 -> 116.25 | D22: ='BSM Calculator'!H141 -> 0 | E22: =IF(begmth>endmth, historicalpricesyr1, historicalpricesyr2) ->  | F22: ='BSM Calculator'!C141 ->  | G22: ='BSM Calculator'!D141 ->  | H22: ='BSM Calculator'!K141 ->  | J22: ='BSM Calculator'!N141 ->  | L22: ='BSM Calculator'!L141 -> 
B23: =historicalpricesyr3 -> 2017 | C23: ='BSM Calculator'!G142 -> 143.08 | D23: ='BSM Calculator'!H142 -> 0 | E23: =IF(begmth>endmth, historicalpricesyr2, historicalpricesyr3) ->  | F23: ='BSM Calculator'!C142 ->  | G23: ='BSM Calculator'!D142 ->  | H23: ='BSM Calculator'!K142 ->  | J23: ='BSM Calculator'!N142 ->  | L23: ='BSM Calculator'!L142 -> 
B24: =historicalpricesyr4 -> 2018 | C24: ='BSM Calculator'!G143 -> 152.55 | D24: ='BSM Calculator'!H143 -> 0 | E24: =IF(begmth>endmth, historicalpricesyr3, historicalpricesyr4) ->  | F24: ='BSM Calculator'!C143 ->  | G24: ='BSM Calculator'!D143 ->  | H24: ='BSM Calculator'!K143 ->  | J24: ='BSM Calculator'!N143 ->  | L24: ='BSM Calculator'!L143 -> 
B25: =historicalpricesyr5 -> 2019 | C25: ='BSM Calculator'!G144 -> 135.67 | D25: ='BSM Calculator'!H144 -> 0 | E25: =IF(begmth>endmth, historicalpricesyr4, historicalpricesyr5) ->  | F25: ='BSM Calculator'!C144 ->  | G25: ='BSM Calculator'!D144 ->  | H25: ='BSM Calculator'!K144 ->  | J25: ='BSM Calculator'!N144 ->  | L25: ='BSM Calculator'!L144 -> 
B26: =historicalpricesyr6 -> 2020 | C26: ='BSM Calculator'!G145 -> 137.9 | D26: ='BSM Calculator'!H145 -> 0 | E26: =IF(begmth>endmth, historicalpricesyr5, historicalpricesyr6) ->  | F26: ='BSM Calculator'!C145 ->  | G26: ='BSM Calculator'!D145 ->  | H26: ='BSM Calculator'!K145 ->  | J26: ='BSM Calculator'!N145 ->  | L26: ='BSM Calculator'!L145 -> 
B27: =historicalpricesyr7 -> 2021 | C27: ='BSM Calculator'!G146 -> 159.69 | D27: ='BSM Calculator'!H146 -> 0 | E27: =IF(begmth>endmth, historicalpricesyr6, historicalpricesyr7) ->  | F27: ='BSM Calculator'!C146 ->  | G27: ='BSM Calculator'!D146 ->  | H27: ='BSM Calculator'!K146 ->  | J27: ='BSM Calculator'!N146 ->  | L27: ='BSM Calculator'!L146 -> 
B28: =historicalpricesyr8 -> 2022 | C28: ='BSM Calculator'!G147 -> 182.92 | D28: ='BSM Calculator'!H147 -> 0 | E28: =IF(begmth>endmth, historicalpricesyr7, historicalpricesyr8) ->  | F28: ='BSM Calculator'!C147 ->  | G28: ='BSM Calculator'!D147 ->  | H28: ='BSM Calculator'!K147 ->  | J28: ='BSM Calculator'!N147 ->  | L28: ='BSM Calculator'!L147 -> 
B29: =historicalpricesyr9 -> 2023 | C29: ='BSM Calculator'!G148 -> 253.43 | D29: ='BSM Calculator'!H148 -> 0 | E29: =IF(begmth>endmth, historicalpricesyr8, historicalpricesyr9) ->  | F29: ='BSM Calculator'!C148 ->  | G29: ='BSM Calculator'!D148 ->  | H29: ='BSM Calculator'!K148 ->  | J29: ='BSM Calculator'!N148 ->  | L29: ='BSM Calculator'!L148 -> 
B30: =historicalpricesyr10 -> 2024 | C30: ='BSM Calculator'!G149 -> 221.42 | D30: ='BSM Calculator'!H149 -> 0 | E30: =IF(begmth>endmth, historicalpricesyr9, historicalpricesyr10) ->  | F30: ='BSM Calculator'!C149 ->  | G30: ='BSM Calculator'!D149 ->  | H30: ='BSM Calculator'!K149 ->  | J30: ='BSM Calculator'!N149 ->  | L30: ='BSM Calculator'!L149 -> 
B31: =historicalpricesyr11 -> 2025 | C31: ='BSM Calculator'!G150 -> 341.18 | D31: ='BSM Calculator'!H150 -> 0 | E31: =IF(begmth>endmth, historicalpricesyr10, historicalpricesyr11) ->  | F31: ='BSM Calculator'!C150 ->  | G31: ='BSM Calculator'!D150 ->  | H31: ='BSM Calculator'!K150 ->  | J31: ='BSM Calculator'!N150 ->  | L31: ='BSM Calculator'!L150 -> 
G32: Minimum | H32: =MIN(H22:I31) ->  | J32: =MIN(J22:K31) ->  | L32: =MIN(L22:M31) -> 
G33: Average | H33: =AVERAGE(H22:I31) ->  | J33: =AVERAGE(J22:K31) ->  | L33: =AVERAGE(L22:M31) -> 
G34: Maximum | H34: =MAX(H22:I31) ->  | J34: =MAX(J22:K31) ->  | L34: =MAX(L22:M31) -> 
J38: Year | K38: Buy/Sell Margin
K39: $/cwt
J40: =historicalpricesyr2 -> 2016 | K40: ='BSM Calculator'!K141 -> 
J41: =historicalpricesyr3 -> 2017 | K41: ='BSM Calculator'!K142 -> 
J42: =historicalpricesyr4 -> 2018 | K42: ='BSM Calculator'!K143 -> 
J43: =historicalpricesyr5 -> 2019 | K43: ='BSM Calculator'!K144 -> 
J44: =historicalpricesyr6 -> 2020 | K44: ='BSM Calculator'!K145 -> 
J45: =historicalpricesyr7 -> 2021 | K45: ='BSM Calculator'!K146 -> 
J46: =historicalpricesyr8 -> 2022 | K46: ='BSM Calculator'!K147 -> 
J47: =historicalpricesyr9 -> 2023 | K47: ='BSM Calculator'!K148 -> 
J48: =historicalpricesyr10 -> 2024 | K48: ='BSM Calculator'!K149 -> 
J49: =historicalpricesyr11 -> 2025 | K49: ='BSM Calculator'!K150 -> 
J50: Minimum | K50: =MIN(K40:L49) -> 
J51: Average | K51: =AVERAGE(K40:L49) -> 
J52: Maximum | K52: =MAX(K40:L49) -> 
J57: Year | K57: Selling Price as % of Buying Price
J59: =historicalpricesyr2 -> 2016 | K59: ='BSM Calculator'!L141 -> 
J60: =historicalpricesyr3 -> 2017 | K60: ='BSM Calculator'!L142 -> 
J61: =historicalpricesyr4 -> 2018 | K61: ='BSM Calculator'!L143 -> 
J62: =historicalpricesyr5 -> 2019 | K62: ='BSM Calculator'!L144 -> 
J63: =historicalpricesyr6 -> 2020 | K63: ='BSM Calculator'!L145 -> 
J64: =historicalpricesyr7 -> 2021 | K64: ='BSM Calculator'!L146 -> 
J65: =historicalpricesyr8 -> 2022 | K65: ='BSM Calculator'!L147 -> 
J66: =historicalpricesyr9 -> 2023 | K66: ='BSM Calculator'!L148 -> 
J67: =historicalpricesyr10 -> 2024 | K67: ='BSM Calculator'!L149 -> 
J68: =historicalpricesyr11 -> 2025 | K68: ='BSM Calculator'!L150 -> 
J69: Minimum | K69: =MIN(K59:L68) -> 
J70: Average | K70: =AVERAGE(K59:L68) -> 
J71: Maximum | K71: =MAX(K59:L68) -> 
J76: Year | K76: Value of Gain
K77: $/cwt
J78: =historicalpricesyr2 -> 2016 | K78: ='BSM Calculator'!N141 -> 
J79: =historicalpricesyr3 -> 2017 | K79: ='BSM Calculator'!N142 -> 
J80: =historicalpricesyr4 -> 2018 | K80: ='BSM Calculator'!N143 -> 
J81: =historicalpricesyr5 -> 2019 | K81: ='BSM Calculator'!N144 -> 
J82: =historicalpricesyr6 -> 2020 | K82: ='BSM Calculator'!N145 -> 
J83: =historicalpricesyr7 -> 2021 | K83: ='BSM Calculator'!N146 -> 
J84: =historicalpricesyr8 -> 2022 | K84: ='BSM Calculator'!N147 -> 
J85: =historicalpricesyr9 -> 2023 | K85: ='BSM Calculator'!N148 -> 
J86: =historicalpricesyr10 -> 2024 | K86: ='BSM Calculator'!N149 -> 
J87: =historicalpricesyr11 -> 2025 | K87: ='BSM Calculator'!N150 -> 
J88: Minimum | K88: =MIN(K78:L87) -> 
J89: Average | K89: =AVERAGE(K78:L87) -> 
J90: Maximum | K90: =MAX(K78:L87) -> 
G129: =CONCATENATE("HLSTRS",(IF(AND(stockerendwt="300-400"),"34",IF(AND(stockerendwt="400-500"),"45",IF(AND(stockerendwt="500-600"),"56",IF(AND(stockerendwt="600-700"),"67",IF(OR(stockerendwt="700-800",stockerendwt="700-800 Loads"),"78","89")))))),endmthalpha) -> HLSTRS45
C133: =stocker_begmth ->  | G133: =stocker_endmth -> 
C134: =LOOKUP(begmthalpha,{"Apr","Aug","Dec","Feb","Jan","Jul","Jun","Mar","May","Nov","Oct","Sep"},{4,8,12,2,1,7,6,3,5,11,10,9}) ->  | G134: =LOOKUP(endmthalpha,{"Apr","Aug","Dec","Feb","Jan","Jul","Jun","Mar","May","Nov","Oct","Sep"},{4,8,12,2,1,7,6,3,5,11,10,9}) -> 
C135: =100-begpercM1 ->  | G135: =100-endpercM1 ->  | N135: =(IF(AND(stockerbegwt="300-400"),350,IF(AND(stockerbegwt="400-500"),450,IF(AND(stockerbegwt="500-600"),550,IF(AND(stockerbegwt="600-700"),650,IF(AND(stockerbegwt="700-800"),750)))))) -> 350
C136: =CONCATENATE(IF(begstate="Georgia","GAM1",""),(IF(stockersex="Heifers","HFRS",IF(stockersex="Steers","STRS","HLSTRS"))),(IF(AND(stockerbegwt="300-400"),"34",IF(AND(stockerbegwt="400-500"),"45",IF(AND(stockerbegwt="500-600"),"56",IF(AND(stockerbegwt="600-700"),"67",IF(OR(stockerbegwt="700-800",stockerbegwt="700-800 Loads"),"78",IF(AND(stockerbegwt="800-900 Loads"),"89"))))))),begmthalpha) -> HLSTRS34 | G136: =IF(endstate="5-Market Area Finished",(CONCATENATE("FINISHED",endmthalpha)),CONCATENATE(IF(endstate="Georgia","GAM1",""),(IF(stockersex="Heifers","HFRS",IF(stockersex="Steers","STRS","HLSTRS"))),(IF(AND(stockerendwt="300-400"),"34",IF(AND(stockerendwt="400-500"),"45",IF(AND(stockerendwt="500-600"),"56",IF(AND(stockerendwt="600-700"),"67",IF(OR(stockerendwt="700-800",stockerendwt="700-800 Loads"),"78","89")))))))) -> HLSTRS45 | N136: =IF(endstate="5-Market Area Finished",1200,(IF(AND(stockerendwt="300-400"),350,IF(AND(stockerendwt="400-500"),450,IF(AND(stockerendwt="500-600"),550,IF(AND(stockerendwt="600-700"),650,IF(OR(stockerendwt="700-800",stockerendwt="700-800 Loads"),750,850))))))) -> 450
C137: =IF(stockersex="Holstein Steers",$C$136,IF(begstate="Georgia",$C$136,CONCATENATE("M1",$C$136,IF(OR(stockerbegwt="700-800 Loads",stockerbegwt="800-900 Loads"),"LOAD","")))) -> M1HLSTRS34 | E137: =IF(stockersex="Holstein Steers",$C$136,IF(begstate="Georgia",$C$136,CONCATENATE("M2",$C$136))) -> M2HLSTRS34 | G137: =IF(stockersex="Holstein Steers",$G$129,IF(endstate="Georgia",$G$136,IF(endstate="5-Market Area Finished",$G$136,CONCATENATE("M1",$G$136,endmthalpha,IF(OR(stockerendwt="700-800 Loads",stockerendwt="800-900 Loads"),"LOAD",""))))) -> M1HLSTRS45 | I137: =IF(stockersex="Holstein Steers",$G$136,IF(endstate="Georgia",$G$136,IF(endstate="5-Market Area Finished",$G$136,CONCATENATE("M2",$G$136)))) -> M2HLSTRS45
C139: Beginning Price | G139: Ending Price | K139: BSM | L139: Selling $ as % of Buying $
C140: M1 | D140: M2 | E140: Wtd Avg | G140: M1 | H140: M2 | I140: Wtd Avg | N140: Value of Gain
C141: =IF(stockerbegwt<300,0,IF(stockerbeggrade="Medium #2",0,IF(endmth>begmth,VLOOKUP($C$137,historicalprices,3),VLOOKUP($C$137,historicalprices,2)))) ->  | D141: =IF(stockerbegwt<300,0,IF(stockerbeggrade="Medium #1",0,IF(stockersex="Holstein Steers",0,IF(endmth>begmth,VLOOKUP($E$137,historicalprices,3),VLOOKUP($E$137,historicalprices,2))))) ->  | E141: =(begpercM1/100*C141)+((begM2perc/100)*D141) ->  | G141: =IF(stockerendgrade="Medium #2",0,(VLOOKUP($G$137,historicalprices,3))) -> 116.25 | H141: =IF(stockerendwt>=800,0,IF(stockerendgrade="Medium #1",0,IF(stockersex="Holstein Steers",0,(VLOOKUP($I$137,historicalprices,3))))) -> 0 | I141: =(endpercM1/100*G141)+((endM2perc/100)*H141) ->  | K141: =I141-E141 ->  | L141: =I141/E141 ->  | N141: =((($N$136/100)*I141)-(($N$135/100)*E141))/(($N$136-$N$135)/100) -> 
C142: =IF(stockerbegwt<300,0,IF(stockerbeggrade="Medium #2",0,IF(endmth>begmth,VLOOKUP($C$137,historicalprices,4),VLOOKUP($C$137,historicalprices,3)))) ->  | D142: =IF(stockerbegwt<300,0,IF(stockerbeggrade="Medium #1",0,IF(stockersex="Holstein Steers",0,IF(endmth>begmth,VLOOKUP($E$137,historicalprices,4),VLOOKUP($E$137,historicalprices,3))))) ->  | G142: =IF(stockerendgrade="Medium #2",0,(VLOOKUP($G$137,historicalprices,4))) -> 143.08 | H142: =IF(stockerendwt>=800,0,IF(stockerendgrade="Medium #1",0,IF(stockersex="Holstein Steers",0,(VLOOKUP($I$137,historicalprices,4))))) -> 0 | K142: =I142-E142 ->  | L142: =I142/E142 ->  | N142: =((($N$136/100)*I142)-(($N$135/100)*E142))/(($N$136-$N$135)/100) -> 
C143: =IF(stockerbegwt<300,0,IF(stockerbeggrade="Medium #2",0,IF(endmth>begmth,VLOOKUP($C$137,historicalprices,5),VLOOKUP($C$137,historicalprices,4)))) ->  | D143: =IF(stockerbegwt<300,0,IF(stockerbeggrade="Medium #1",0,IF(stockersex="Holstein Steers",0,IF(endmth>begmth,VLOOKUP($E$137,historicalprices,5),VLOOKUP($E$137,historicalprices,4))))) ->  | G143: =IF(stockerendgrade="Medium #2",0,(VLOOKUP($G$137,historicalprices,5))) -> 152.55 | H143: =IF(stockerendwt>=800,0,IF(stockerendgrade="Medium #1",0,IF(stockersex="Holstein Steers",0,(VLOOKUP($I$137,historicalprices,5))))) -> 0 | N143: =((($N$136/100)*I143)-(($N$135/100)*E143))/(($N$136-$N$135)/100) -> 
C144: =IF(stockerbegwt<300,0,IF(stockerbeggrade="Medium #2",0,IF(endmth>begmth,VLOOKUP($C$137,historicalprices,6),VLOOKUP($C$137,historicalprices,5)))) ->  | D144: =IF(stockerbegwt<300,0,IF(stockerbeggrade="Medium #1",0,IF(stockersex="Holstein Steers",0,IF(endmth>begmth,VLOOKUP($E$137,historicalprices,6),VLOOKUP($E$137,historicalprices,5))))) ->  | G144: =IF(stockerendgrade="Medium #2",0,(VLOOKUP($G$137,historicalprices,6))) -> 135.67 | H144: =IF(stockerendwt>=800,0,IF(stockerendgrade="Medium #1",0,IF(stockersex="Holstein Steers",0,(VLOOKUP($I$137,historicalprices,6))))) -> 0
C145: =IF(stockerbegwt<300,0,IF(stockerbeggrade="Medium #2",0,IF(endmth>begmth,VLOOKUP($C$137,historicalprices,7),VLOOKUP($C$137,historicalprices,6)))) ->  | D145: =IF(stockerbegwt<300,0,IF(stockerbeggrade="Medium #1",0,IF(stockersex="Holstein Steers",0,IF(endmth>begmth,VLOOKUP($E$137,historicalprices,7),VLOOKUP($E$137,historicalprices,6))))) ->  | G145: =IF(stockerendgrade="Medium #2",0,(VLOOKUP($G$137,historicalprices,7))) -> 137.9 | H145: =IF(stockerendwt>=800,0,IF(stockerendgrade="Medium #1",0,IF(stockersex="Holstein Steers",0,(VLOOKUP($I$137,historicalprices,7))))) -> 0
C146: =IF(stockerbegwt<300,0,IF(stockerbeggrade="Medium #2",0,IF(endmth>begmth,VLOOKUP($C$137,historicalprices,8),VLOOKUP($C$137,historicalprices,7)))) ->  | D146: =IF(stockerbegwt<300,0,IF(stockerbeggrade="Medium #1",0,IF(stockersex="Holstein Steers",0,IF(endmth>begmth,VLOOKUP($E$137,historicalprices,8),VLOOKUP($E$137,historicalprices,7))))) ->  | G146: =IF(stockerendgrade="Medium #2",0,(VLOOKUP($G$137,historicalprices,8))) -> 159.69 | H146: =IF(stockerendwt>=800,0,IF(stockerendgrade="Medium #1",0,IF(stockersex="Holstein Steers",0,(VLOOKUP($I$137,historicalprices,8))))) -> 0
C147: =IF(stockerbegwt<300,0,IF(stockerbeggrade="Medium #2",0,IF(endmth>begmth,VLOOKUP($C$137,historicalprices,9),VLOOKUP($C$137,historicalprices,8)))) ->  | D147: =IF(stockerbegwt<300,0,IF(stockerbeggrade="Medium #1",0,IF(stockersex="Holstein Steers",0,IF(endmth>begmth,VLOOKUP($E$137,historicalprices,9),VLOOKUP($E$137,historicalprices,8))))) ->  | G147: =IF(stockerendgrade="Medium #2",0,(VLOOKUP($G$137,historicalprices,9))) -> 182.92 | H147: =IF(stockerendwt>=800,0,IF(stockerendgrade="Medium #1",0,IF(stockersex="Holstein Steers",0,(VLOOKUP($I$137,historicalprices,9))))) -> 0
C148: =IF(stockerbegwt<300,0,IF(stockerbeggrade="Medium #2",0,IF(endmth>begmth,VLOOKUP($C$137,historicalprices,10),VLOOKUP($C$137,historicalprices,9)))) ->  | D148: =IF(stockerbegwt<300,0,IF(stockerbeggrade="Medium #1",0,IF(stockersex="Holstein Steers",0,IF(endmth>begmth,VLOOKUP($E$137,historicalprices,10),VLOOKUP($E$137,historicalprices,9))))) ->  | G148: =IF(stockerendgrade="Medium #2",0,(VLOOKUP($G$137,historicalprices,10))) -> 253.43 | H148: =IF(stockerendwt>=800,0,IF(stockerendgrade="Medium #1",0,IF(stockersex="Holstein Steers",0,(VLOOKUP($I$137,historicalprices,10))))) -> 0
C149: =IF(stockerbegwt<300,0,IF(stockerbeggrade="Medium #2",0,IF(endmth>begmth,VLOOKUP($C$137,historicalprices,11),VLOOKUP($C$137,historicalprices,10)))) ->  | D149: =IF(stockerbegwt<300,0,IF(stockerbeggrade="Medium #1",0,IF(stockersex="Holstein Steers",0,IF(endmth>begmth,VLOOKUP($E$137,historicalprices,11),VLOOKUP($E$137,historicalprices,10))))) ->  | G149: =IF(stockerendgrade="Medium #2",0,(VLOOKUP($G$137,historicalprices,11))) -> 221.42 | H149: =IF(stockerendwt>=800,0,IF(stockerendgrade="Medium #1",0,IF(stockersex="Holstein Steers",0,(VLOOKUP($I$137,historicalprices,11))))) -> 0
C150: =IF(stockerbegwt<300,0,IF(stockerbeggrade="Medium #2",0,IF(endmth>begmth,VLOOKUP($C$137,historicalprices,12),VLOOKUP($C$137,historicalprices,11)))) ->  | D150: =IF(stockerbegwt<300,0,IF(stockerbeggrade="Medium #1",0,IF(stockersex="Holstein Steers",0,IF(endmth>begmth,VLOOKUP($E$137,historicalprices,12),VLOOKUP($E$137,historicalprices,11))))) ->  | G150: =IF(stockerendgrade="Medium #2",0,(VLOOKUP($G$137,historicalprices,12))) -> 341.18 | H150: =IF(stockerendwt>=800,0,IF(stockerendgrade="Medium #1",0,IF(stockersex="Holstein Steers",0,(VLOOKUP($I$137,historicalprices,12))))) -> 0
B152: 10 yr avg | C152: =AVERAGE(C141:C150) ->  | D152: =AVERAGE(D141:D150) ->  | E152: =AVERAGE(E141:E150) ->  | G152: =AVERAGE(G141:G150) -> 184.409 | H152: =AVERAGE(H141:H150) -> 0 | I152: =AVERAGE(I141:I150) ->  | J152: 10 yr avg | K152: =AVERAGE(K141:K150) ->  | L152: =AVERAGE(L141:L150) ->  | N152: =AVERAGE(N141:N150) -> 
B153: 5 yr avg | C153: =AVERAGE(C146:C150) ->  | D153: =AVERAGE(D146:D150) ->  | E153: =AVERAGE(E146:E150) ->  | G153: =AVERAGE(G146:G150) -> 231.728 | H153: =AVERAGE(H146:H150) -> 0 | I153: =AVERAGE(I146:I150) ->  | J153: 5 yr avg | K153: =AVERAGE(K146:K150) ->  | L153: =AVERAGE(L146:L150) ->  | N153: =AVERAGE(N146:N150) -> 
B154: 1 yr avg | C154: =C150 ->  | D154: =D150 ->  | E154: =E150 ->  | G154: =G150 -> 341.18 | H154: =H150 -> 0 | I154: =I150 ->  | J154: 1 yr avg | K154: =K150 ->  | L154: =L150 ->  | N154: =N150 -> 
E159: Average Selling Prices as % of Buying Price
C160: Average BSM | H160: Value of Gain
C161: =AvgBSM ->  | E161: =AvgSPpercBP ->  | H161: =AvgVOG -> 
C162: =AvgBSM -> 

Sheet Data (hidden)
B2: Months dropdown list | E2: Sex | G2: Grade dropdown list | J2: State dropdown list | M2: Beginning Weight dropdown list | P2: GA Heifers dropdown list | T2: Percent M1 dropdown list
B3: Jan | E3: Heifers | G3: Medium #1 | J3: Georgia | M3: 300-400 | P3: 300-400 | T3: 0
B4: Feb | E4: Steers | G4: Medium #2 | J4: Tennessee | M4: 400-500 | P4: 400-500 | T4: 5
B5: Mar | E5: Holstein Steers | G5: Mixed | M5: 500-600 | P5: 500-600 | T5: 10
B6: Apr | M6: 600-700 | P6: 600-700 | T6: 15
B7: May | J7: State dropdown list | M7: 700-800 | T7: 20
B8: Jun | J8: Georgia | T8: 25
B9: Jul | J9: Tennessee | M9: Ending Weight dropdown list | P9: TN Heifers Ending Weight dropdown list | T9: 30
B10: Aug | J10: 5-Market Area Finished | M10: 300-400 | P10: 300-400 | T10: 35
B11: Sep | M11: 400-500 | P11: 400-500 | T11: 40
B12: Oct | M12: 500-600 | P12: 500-600 | T12: 45
B13: Nov | M13: 600-700 | P13: 600-700 | T13: 50
B14: Dec | M14: 700-800 | P14: 700-800 | T14: 55
M15: 700-800 Loads | P15: 700-800 Loads | T15: 60
M16: 800-900 Loads | T16: 65
T17: 70
A18: ID | B18: 15 | C18: 16 | D18: 17 | E18: 18 | F18: 19 | G18: 20 | H18: 21 | I18: 22 | J18: 23 | K18: 24 | L18: 25 | O18: Prices Years | T18: 75
A19: FINISHEDAPR | B19: 162.49 | C19: 130.1053639 | D19: 131.31 | E19: 121.0882883 | F19: 126.33 | G19: 102.02 | H19: 120.880667 | I19: 141.66 | J19: 177.09 | K19: 184.21 | L19: 213.88 | O19: 2015 | T19: 80
A20: FINISHEDAUG | B20: 135.29 | C20: 116.4519523 | D20: 111.83 | E20: 110.3648986 | F20: 109.38 | G20: 104.6 | H20: 124.45 | I20: 144.07 | J20: 184.85 | K20: 189.39 | L20: 243.14 | O20: 2016 | T20: 85
A21: FINISHEDDEC | B21: 125.23 | C21: 114.0602478 | D21: 119.8 | E21: 119.36 | F21: 120 | G21: 109.05 | H21: 139.36 | I21: 156.53 | J21: 170.69 | K21: 193.44 | L21: 226.26 | O21: 2017 | T21: 90
A22: FINISHEDFEB | B22: 159.74 | C22: 133.9177502 | D22: 121.54 | E22: 127.9419521 | F22: 124.88 | G22: 118.59 | H22: 113.8959386 | I22: 141.32 | J22: 160.89 | K22: 181.1 | L22: 202.6 | O22: 2018 | T22: 95
A23: FINISHEDJAN | B23: 164.69 | C23: 133.7904204 | D23: 119.99 | E23: 123.3506648 | F23: 123.23 | G23: 123.89 | H23: 110.65 | I23: 137.27 | J23: 156.3 | K23: 174.45 | L23: 204.49 | O23: 2019 | T23: 100
A24: FINISHEDJUL | B24: 148.89 | C24: 117.3192715 | D24: 118.45 | E24: 112.1952486 | F24: 112.84 | G24: 96.57 | H24: 122.03 | I24: 142.16 | J24: 184.25 | K24: 194.82 | L24: 237.09 | O24: 2020
A25: FINISHEDJUN | B25: 151.25 | C25: 123.5074455 | D25: 128.92 | E25: 110.5627269 | F25: 111.92 | G25: 103.82 | H25: 122.02 | I25: 142.78 | J25: 184.51 | K25: 193.33 | L25: 235.35 | O25: 2021
A26: FINISHEDMAR | B26: 162.86 | C26: 136.7108384 | D26: 127.36 | E26: 125.5236364 | F26: 127.69 | G26: 112.48 | H26: 114.3953902 | I26: 139.17 | J26: 165.56 | K26: 187.55 | L26: 207.96 | O26: 2022
A27: FINISHEDMAY | B27: 160.6 | C27: 129.4394505 | D27: 138.05 | E27: 118.5048407 | F27: 118.13 | G27: 111.53 | H27: 119.36 | I27: 141.34 | J27: 175.45 | K27: 187.71 | L27: 226.43 | O27: 2023
A28: FINISHEDNOV | B28: 125.23 | C28: 108.1344146 | D28: 121.37 | E28: 115.04 | F28: 115.35 | G28: 108.85 | H28: 133.39 | I28: 153.62 | J28: 178.76 | K28: 187.2 | L28: 221.02 | O28: 2024
A29: FINISHEDOCT | B29: 127.07 | C29: 100.8735432 | D29: 112.47 | E29: 111.56 | F29: 109.29 | G29: 106.65 | H29: 124.33 | I29: 148.83 | J29: 184.35 | K29: 188.62 | L29: 235.56 | O29: 2025
A30: FINISHEDSEP | B30: 130.84 | C30: 105.9035483 | D30: 107.11 | E30: 109.91 | F30: 102.27 | G30: 104.06 | H30: 124.05 | I30: 144.04 | J30: 183.71 | K30: 183.56 | L30: 238.64
A31: GAM1HFRS34APR | B31: 303.38 | C31: 172.78 | D31: 145.62 | E31: 148.82 | F31: 151.34 | G31: 101.76 | H31: 143.92 | I31: 160.14 | J31: 221.62 | K31: 304.73 | L31: 382.26
A32: GAM1HFRS34AUG | B32: 265.48 | C32: 148.47 | D32: 145.08 | E32: 143.94 | F32: 126.82 | G32: 136.96 | H32: 149.21 | I32: 162.82 | J32: 241.41 | K32: 278.38 | L32: 418.45
A33: GAM1HFRS34DEC | B33: 183.79 | C33: 133.93 | D33: 145.34 | E33: 141.09 | F33: 130.06 | G33: 139.15 | H33: 144.35 | I33: 168.49 | J33: 241.29 | K33: 319.27 | L33: 428.32
A34: GAM1HFRS34FEB | B34: 293.24 | C34: 191.3 | D34: 136.45 | E34: 164.5 | F34: 148.69 | G34: 147.01 | H34: 138.22 | I34: 161.65 | J34: 186.38 | K34: 284.14 | L34: 332.54
A35: GAM1HFRS34JAN | B35: 287.89 | C35: 196.53 | D35: 135.77 | E35: 150.11 | F35: 143.93 | G35: 145.29 | H35: 137.09 | I35: 154.17 | J35: 171.23 | K35: 262.34 | L35: 342.42
A36: GAM1HFRS34JUL | B36: 278.57 | C36: 143.37 | D36: 149.99 | E36: 145.7 | F36: 132.42 | G36: 137.95 | H36: 147.45 | I36: 157.71 | J36: 234.37 | K36: 298.26 | L36: 398.78
A37: GAM1HFRS34JUN | B37: 297.29 | C37: 151.94 | D37: 149.87 | E37: 151.13 | F37: 130.69 | G37: 138.46 | H37: 139.66 | I37: 155.15 | J37: 245.08 | K37: 311.86 | L37: 386.64
A38: GAM1HFRS34MAR | B38: 302.88 | C38: 193.7 | D38: 142.8 | E38: 161.03 | F38: 154.05 | G38: 139.21 | H38: 141.75 | I38: 164.29 | J38: 210.71 | K38: 300.94 | L38: 377.08
A39: GAM1HFRS34MAY | B39: 299.53 | C39: 161.42 | D39: 151.39 | E39: 151.11 | F39: 143.93 | G39: 138.14 | H39: 136.73 | I39: 158.11 | J39: 229.31 | K39: 305.46 | L39: 397.94
A40: GAM1HFRS34NOV | B40: 202.71 | C40: 122.99 | D40: 147.91 | E40: 143.04 | F40: 125.68 | G40: 133.93 | H40: 138.85 | I40: 159.72 | J40: 232.37 | K40: 271.85 | L40: 395.06
A41: GAM1HFRS34OCT | B41: 202.28 | C41: 114.01 | D41: 144.26 | E41: 143.85 | F41: 122.64 | G41: 128.93 | H41: 136.31 | I41: 153.2 | J41: 233.31 | K41: 264.76 | L41: 413.58
A42: GAM1HFRS34SEP | B42: 228.8 | C42: 132.13 | D42: 142.71 | E42: 143.22 | F42: 122.54 | G42: 135.17 | H42: 141.02 | I42: 162.19 | J42: 240.09 | K42: 267.81 | L42: 437.78
A43: GAM1HFRS45APR | B43: 264.04 | C43: 154.82 | D43: 135.46 | E43: 139.93 | F43: 142.98 | G43: 127.52 | H43: 136.63 | I43: 154.15 | J43: 208.38 | K43: 280.67 | L43: 346.47
A44: GAM1HFRS45AUG | B44: 232.01 | C44: 132.67 | D44: 133.03 | E44: 135.83 | F44: 121.5 | G44: 128.2 | H44: 139.24 | I44: 156.27 | J44: 232.46 | K44: 251.02 | L44: 378.19
A45: GAM1HFRS45DEC | B45: 155.69 | C45: 121.03 | D45: 134.18 | E45: 129.15 | F45: 121.41 | G45: 130.36 | H45: 137.81 | I45: 160.93 | J45: 225.49 | K45: 289.68 | L45: 392
A46: GAM1HFRS45FEB | B46: 256.16 | C46: 164.91 | D46: 126.4 | E46: 150.28 | F46: 137.45 | G46: 137.63 | H46: 129.32 | I46: 154.31 | J46: 176.56 | K46: 264.21 | L46: 306.72
A47: GAM1HFRS45JAN | B47: 255.14 | C47: 162.09 | D47: 124.05 | E47: 138.58 | F47: 131.86 | G47: 134.58 | H47: 129.09 | I47: 149.5 | J47: 163.78 | K47: 247.52 | L47: 303.65
A48: GAM1HFRS45JUL | B48: 241.8 | C48: 129.35 | D48: 136.63 | E48: 136.41 | F48: 126.31 | G48: 129.06 | H48: 139.03 | I48: 150.44 | J48: 224.71 | K48: 268.21 | L48: 361.2
A49: GAM1HFRS45JUN | B49: 257.05 | C49: 134.79 | D49: 140.22 | E49: 139.68 | F49: 125.81 | G49: 129.04 | H49: 135.49 | I49: 150.55 | J49: 230.38 | K49: 274.23 | L49: 355.47
A50: GAM1HFRS45MAR | B50: 261.98 | C50: 170.77 | D50: 132.48 | E50: 146.86 | F50: 141.94 | G50: 130.94 | H50: 135.13 | I50: 155.69 | J50: 197.44 | K50: 282.56 | L50: 338.57
A51: GAM1HFRS45MAY | B51: 257.33 | C51: 143.69 | D51: 141.96 | E51: 141.81 | F51: 134.68 | G51: 127.19 | H51: 129.28 | I51: 153.77 | J51: 216.33 | K51: 278.37 | L51: 359.8
A52: GAM1HFRS45NOV | B52: 175.21 | C52: 111.21 | D52: 135.78 | E52: 129.39 | F52: 120.7 | G52: 125.86 | H52: 132.13 | I52: 151.82 | J52: 223.96 | K52: 253.6 | L52: 367.81
A53: GAM1HFRS45OCT | B53: 180.08 | C53: 102.12 | D53: 133.07 | E53: 132.97 | F53: 116.79 | G53: 120.38 | H53: 130.71 | I53: 148.07 | J53: 224.52 | K53: 244.03 | L53: 379.33
A54: GAM1HFRS45SEP | B54: 196.2 | C54: 117.77 | D54: 132.85 | E54: 134.29 | F54: 117.44 | G54: 123.79 | H54: 133.48 | I54: 154.73 | J54: 230.73 | K54: 242.66 | L54: 393.81
A55: GAM1HFRS56APR | B55: 234.85 | C55: 142 | D55: 127.82 | E55: 131 | F55: 135.25 | G55: 118.44 | H55: 128.07 | I55: 146.04 | J55: 194.54 | K55: 257.59 | L55: 315.32
A56: GAM1HFRS56AUG | B56: 211.09 | C56: 125.82 | D56: 125.48 | E56: 128.34 | F56: 115.12 | G56: 121.31 | H56: 131.43 | I56: 149.86 | J56: 220.82 | K56: 233.42 | L56: 341.57
A57: GAM1HFRS56DEC | B57: 138.91 | C57: 107.67 | D57: 127.36 | E57: 119.08 | F57: 115.42 | G57: 115.95 | H57: 129.3 | I57: 149.46 | J57: 209.99 | K57: 258.35 | L57: 349.48
A58: GAM1HFRS56FEB | B58: 223.63 | C58: 148.78 | D58: 115.95 | E58: 138.68 | F58: 128.06 | G58: 125.33 | H58: 120.98 | I58: 146.48 | J58: 165.62 | K58: 245.52 | L58: 276.4
A59: GAM1HFRS56JAN | B59: 225.73 | C59: 145.64 | D59: 113.24 | E59: 130.03 | F59: 123.59 | G59: 124.49 | H59: 118.12 | I59: 140.67 | J59: 155.83 | K59: 228.92 | L59: 271.85
A60: GAM1HFRS56JUL | B60: 220.07 | C60: 121.22 | D60: 129.2 | E60: 129.33 | F60: 119.88 | G60: 120.71 | H60: 128.9 | I60: 142.72 | J60: 215.44 | K60: 253.51 | L60: 331.4
A61: GAM1HFRS56JUN | B61: 232.25 | C61: 126.61 | D61: 132.22 | E61: 131.03 | F61: 119.47 | G61: 120.8 | H61: 128.62 | I61: 141.38 | J61: 215.18 | K61: 254.18 | L61: 326.31
A62: GAM1HFRS56MAR | B62: 233.4 | C62: 152.26 | D62: 123.29 | E62: 135.11 | F62: 132.71 | G62: 121.16 | H62: 125.56 | I62: 147.52 | J62: 183.51 | K62: 259.39 | L62: 304.52
A63: GAM1HFRS56MAY | B63: 232.3 | C63: 134.06 | D63: 135.35 | E63: 132.62 | F63: 127.61 | G63: 119.17 | H63: 121.51 | I63: 144.41 | J63: 202.43 | K63: 256.04 | L63: 329
A64: GAM1HFRS56NOV | B64: 152.97 | C64: 99.26 | D64: 127.36 | E64: 120.02 | F64: 114.63 | G64: 113.9 | H64: 121.85 | I64: 144.87 | J64: 211.67 | K64: 232.14 | L64: 335.17
A65: GAM1HFRS56OCT | B65: 161.02 | C65: 92.55 | D65: 123.87 | E65: 123.96 | F65: 108.73 | G65: 113.11 | H65: 122.26 | I65: 138.29 | J65: 212.8 | K65: 223.73 | L65: 344.7
A66: GAM1HFRS56SEP | B66: 180.35 | C66: 108.86 | D66: 124.46 | E66: 126.86 | F66: 111.78 | G66: 118.55 | H66: 128.38 | I66: 147 | J66: 223.8 | K66: 226.79 | L66: 354.85
A67: GAM1HFRS67APR | B67: 210.74 | C67: 133.29 | D67: 120.38 | E67: 121.18 | F67: 125.91 | G67: 108.93 | H67: 118.18 | I67: 132.63 | J67: 177.3 | K67: 229.32 | L67: 277.37
A68: GAM1HFRS67AUG | B68: 195.09 | C68: 120.25 | D68: 120.4 | E68: 120.74 | F68: 110.42 | G68: 115.4 | H68: 122.04 | I68: 141.89 | J68: 210.16 | K68: 217.03 | L68: 316.82
A69: GAM1HFRS67DEC | B69: 128.83 | C69: 98.03 | D69: 120.83 | E69: 111.79 | F69: 108.61 | G69: 107.73 | H69: 123.89 | I69: 137.57 | J69: 191.16 | K69: 237.32 | L69: 323.07
A70: GAM1HFRS67FEB | B70: 201.78 | C70: 137.82 | D70: 109.19 | E70: 128.06 | F70: 121.71 | G70: 114.86 | H70: 111.59 | I70: 137.34 | J70: 153.48 | K70: 225.39 | L70: 251.01
A71: GAM1HFRS67JAN | B71: 206.33 | C71: 135.44 | D71: 106.01 | E71: 121.42 | F71: 115.62 | G71: 115.05 | H71: 109.81 | I71: 132.95 | J71: 144.73 | K71: 210.78 | L71: 246.31
A72: GAM1HFRS67JUL | B72: 200.55 | C72: 116.97 | D72: 123.96 | E72: 121.95 | F72: 113.48 | G72: 109.12 | H72: 117.62 | I72: 132.28 | J72: 204.72 | K72: 233.36 | L72: 301.81
A73: GAM1HFRS67JUN | B73: 210.33 | C73: 119.8 | D73: 125.15 | E73: 121.48 | F73: 114.78 | G73: 109.99 | H73: 117.25 | I73: 129.21 | J73: 198.64 | K73: 228.04 | L73: 299.57
A74: GAM1HFRS67MAR | B74: 208.48 | C74: 140.71 | D74: 115.2 | E74: 125.61 | F74: 125.04 | G74: 110.35 | H74: 116.27 | I74: 136.21 | J74: 167.89 | K74: 233.73 | L74: 264.88
A75: GAM1HFRS67MAY | B75: 210.2 | C75: 127.42 | D75: 125.52 | E75: 121.77 | F75: 119.96 | G75: 109.89 | H75: 111.73 | I75: 128.2 | J75: 186.64 | K75: 232.58 | L75: 295.67
A76: GAM1HFRS67NOV | B76: 142.78 | C76: 90.67 | D76: 121.08 | E76: 114.1 | F76: 109.3 | G76: 105.05 | H76: 116.32 | I76: 132.68 | J76: 191.44 | K76: 214.45 | L76: 309.89
A77: GAM1HFRS67OCT | B77: 150.91 | C77: 86.42 | D77: 117.77 | E77: 118.86 | F77: 105.79 | G77: 105.36 | H77: 116.83 | I77: 128.15 | J77: 196 | K77: 206.09 | L77: 321.27
A78: GAM1HFRS67SEP | B78: 169.61 | C78: 102.33 | D78: 118.12 | E78: 120.11 | F78: 109.63 | G78: 112.09 | H78: 121.95 | I78: 138.46 | J78: 209.61 | K78: 212.81 | L78: 330.21
A79: GAM1HFRS78APR | B79: 198.46 | C79: 124.92 | D79: 115.17 | E79: 113.99 | F79: 119.53 | G79: 99.66 | H79: 111.19 | I79: 122.3 | J79: 164.72 | K79: 206.56 | L79: 250.37
A80: GAM1HFRS78AUG | B80: 187.41 | C80: 112.85 | D80: 115.05 | E80: 114.57 | F80: 109.25 | G80: 108.02 | H80: 108.73 | I80: 131.2 | J80: 194.31 | K80: 191.76 | L80: 276.84
A81: GAM1HFRS78DEC | B81: 140.172 | C81: 89.04 | D81: 115.51 | E81: 112.43 | F81: 104.8 | G81: 100.86 | H81: 113.95 | I81: 129.55 | J81: 170.96 | K81: 211.63 | L81: 291.4
A82: GAM1HFRS78FEB | B82: 179.92 | C82: 128.67 | D82: 103.19 | E82: 120.08 | F82: 114.75 | G82: 109.16 | H82: 103.79 | I82: 124.55 | J82: 140.78 | K82: 204.65 | L82: 227.56
A83: GAM1HFRS78JAN | B83: 195.9 | C83: 131.79 | D83: 99.76 | E83: 115.63 | F83: 107.42 | G83: 115.29 | H83: 99.68 | I83: 121.02 | J83: 134.16 | K83: 191.84 | L83: 224.07
A84: GAM1HFRS78JUL | B84: 190.17 | C84: 110.63 | D84: 117.4 | E84: 112.63 | F84: 105.71 | G84: 103.68 | H84: 109.65 | I84: 122.33 | J84: 185.93 | K84: 214.56 | L84: 270.25
A85: GAM1HFRS78JUN | B85: 197.48 | C85: 114.44 | D85: 118.08 | E85: 109.24 | F85: 108.52 | G85: 102.88 | H85: 108.43 | I85: 119.36 | J85: 175 | K85: 208.74 | L85: 254.14
A86: GAM1HFRS78MAR | B86: 193.05 | C86: 129.9 | D86: 107.78 | E86: 117.12 | F86: 118.45 | G86: 93.65 | H86: 108.63 | I86: 127.8 | J86: 154.95 | K86: 217.77 | L86: 246.15
A87: GAM1HFRS78MAY | B87: 186.81 | C87: 119.69 | D87: 116.73 | E87: 111.65 | F87: 112.22 | G87: 98.98 | H87: 105.61 | I87: 122.33 | J87: 160.67 | K87: 213.54 | L87: 254.13
A88: GAM1HFRS78NOV | B88: 142.09 | C88: 86.23 | D88: 114.18 | E88: 110 | F88: 102.1 | G88: 97.28 | H88: 109.77 | I88: 123.99 | J88: 175.92 | K88: 197.31 | L88: 284.33
A89: GAM1HFRS78OCT | B89: 144.63 | C89: 80.99 | D89: 112.1 | E89: 112.33 | F89: 100.03 | G89: 96.93 | H89: 109.49 | I89: 119.56 | J89: 182.43 | K89: 187.28 | L89: 282.72
A90: GAM1HFRS78SEP | B90: 171.32 | C90: 95.55 | D90: 113.39 | E90: 115.89 | F90: 105.71 | G90: 104.99 | H90: 115.09 | I90: 133.35 | J90: 197.31 | K90: 184.66 | L90: 296.96
A91: GAM1STRS34APR | B91: 351.87 | C91: 225.11 | D91: 168.67 | E91: 174.86 | F91: 182.07 | G91: 172.33 | H91: 173.79 | I91: 192.52 | J91: 192.52 | K91: 350.12 | L91: 434.71
A92: GAM1STRS34AUG | B92: 306.31 | C92: 172.64 | D92: 170.07 | E92: 185.59 | F92: 152.6 | G92: 167.08 | H92: 180.39 | I92: 199.38 | J92: 199.38 | K92: 320.8 | L92: 471.44
A93: GAM1STRS34DEC | B93: 233.39 | C93: 158.24 | D93: 175.32 | E93: 178.68 | F93: 166.98 | G93: 166.3 | H93: 183.76 | I93: 211.14 | J93: 211.14 | K93: 376.71 | L93: 493.01
A94: GAM1STRS34FEB | B94: 360.43 | C94: 227.93 | D94: 162.4 | E94: 194.29 | F94: 181.72 | G94: 183.95 | H94: 168.86 | I94: 204.35 | J94: 204.35 | K94: 353.7 | L94: 404.84
A95: GAM1STRS34JAN | B95: 349.13 | C95: 239.15 | D95: 161.58 | E95: 178.8 | F95: 174.12 | G95: 180.02 | H95: 170.63 | I95: 187.28 | J95: 187.28 | K95: 316.37 | L95: 409.61
A96: GAM1STRS34JUL | B96: 303.11 | C96: 160.4 | D96: 173.1 | E96: 173.63 | F96: 153.74 | G96: 162.21 | H96: 183.1 | I96: 190.76 | J96: 190.76 | K96: 351.69 | L96: 453.18
A97: GAM1STRS34JUN | B97: 342.28 | C97: 160.56 | D97: 172.26 | E97: 173.26 | F97: 162.38 | G97: 160.83 | H97: 168.76 | I97: 182.53 | J97: 182.53 | K97: 341.6 | L97: 429.1
A98: GAM1STRS34MAR | B98: 363.21 | C98: 228.33 | D98: 165.8 | E98: 189.77 | F98: 183.1 | G98: 166.5 | H98: 173.06 | I98: 198.37 | J98: 198.37 | K98: 360.86 | L98: 439.44
A99: GAM1STRS34MAY | B99: 346.69 | C99: 181.67 | D99: 172.53 | E99: 173.95 | F99: 160.45 | G99: 160.26 | H99: 162.11 | I99: 187.87 | J99: 187.87 | K99: 355.55 | L99: 445
A100: GAM1STRS34NOV | B100: 270.12 | C100: 146.38 | D100: 177.07 | E100: 166.04 | F100: 160.82 | G100: 166.24 | H100: 169.96 | I100: 190.81 | J100: 190.81 | K100: 331.49 | L100: 456.7
A101: GAM1STRS34OCT | B101: 243.21 | C101: 133.84 | D101: 177.08 | E101: 172.31 | F101: 153.23 | G101: 154.94 | H101: 167.35 | I101: 191.27 | J101: 191.27 | K101: 309.28 | L101: 475.29
A102: GAM1STRS34SEP | B102: 260.46 | C102: 155.52 | D102: 175.64 | E102: 175.87 | F102: 152 | G102: 162.81 | H102: 171.02 | I102: 202.22 | J102: 202.22 | K102: 313.65 | L102: 486.89
A103: GAM1STRS45APR | B103: 301.91 | C103: 173.77 | D103: 155.4 | E103: 163.79 | F103: 169.47 | G103: 149.29 | H103: 159.21 | I103: 179.56 | J103: 179.56 | K103: 330.54 | L103: 394.52
A104: GAM1STRS45AUG | B104: 259.19 | C104: 152.16 | D104: 153.89 | E104: 159.17 | F104: 140.02 | G104: 148.58 | H104: 164.74 | I104: 186.48 | J104: 186.48 | K104: 286.77 | L104: 421.26
A105: GAM1STRS45DEC | B105: 189.78 | C105: 143.18 | D105: 161.99 | E105: 155.69 | F105: 149.51 | G105: 154.16 | H105: 169.33 | I105: 194.21 | J105: 194.21 | K105: 336.25 | L105: 456.6
A106: GAM1STRS45FEB | B106: 298.54 | C106: 203.38 | D106: 148.57 | E106: 180.08 | F106: 167.16 | G106: 165.57 | H106: 156.66 | I106: 184.1 | J106: 184.1 | K106: 324.66 | L106: 359.08
A107: GAM1STRS45JAN | B107: 306.32 | C107: 198.8 | D107: 146.16 | E107: 165.12 | F107: 162.28 | G107: 164.57 | H107: 156.99 | I107: 179.35 | J107: 179.35 | K107: 289.31 | L107: 358.28
A108: GAM1STRS45JUL | B108: 263.17 | C108: 139.76 | D108: 157.79 | E108: 159.63 | F108: 141.54 | G108: 144.89 | H108: 160.49 | I108: 182.86 | J108: 182.86 | K108: 319.64 | L108: 405.39
A109: GAM1STRS45JUN | B109: 286.71 | C109: 149.99 | D109: 159.58 | E109: 159.82 | F109: 143.75 | G109: 144.85 | H109: 158.24 | I109: 173.79 | J109: 173.79 | K109: 324.42 | L109: 398.43
A110: GAM1STRS45MAR | B110: 307.65 | C110: 204.79 | D110: 156.39 | E110: 173.07 | F110: 171.5 | G110: 156.13 | H110: 162.37 | I110: 186.25 | J110: 186.25 | K110: 333.67 | L110: 393.42
A111: GAM1STRS45MAY | B111: 287.2 | C111: 158.89 | D111: 160.89 | E111: 162.21 | F111: 157.15 | G111: 145.39 | H111: 151.15 | I111: 175.04 | J111: 175.04 | K111: 328.36 | L111: 406.26
A112: GAM1STRS45NOV | B112: 220.65 | C112: 133.05 | D112: 161.61 | E112: 157.07 | F112: 144.4 | G112: 148.16 | H112: 159.96 | I112: 182.52 | J112: 182.52 | K112: 303.36 | L112: 432.03
A113: GAM1STRS45OCT | B113: 211.79 | C113: 121.89 | D113: 159.38 | E113: 156.88 | F113: 135.9 | G113: 139.3 | H113: 155.93 | I113: 174.41 | J113: 174.41 | K113: 285.19 | L113: 425.07
A114: GAM1STRS45SEP | B114: 224.86 | C114: 136.47 | D114: 158.78 | E114: 159.83 | F114: 134.86 | G114: 147.73 | H114: 160.78 | I114: 187.65 | J114: 187.65 | K114: 277.71 | L114: 445.27
A115: GAM1STRS56APR | B115: 265.95 | C115: 156.72 | D115: 142.56 | E115: 150.5 | F115: 159.12 | G115: 137.5 | H115: 145.93 | I115: 167.09 | J115: 167.09 | K115: 302.77 | L115: 362.83
A116: GAM1STRS56AUG | B116: 228.81 | C116: 136.99 | D116: 140.02 | E116: 147.93 | F116: 131.08 | G116: 135.59 | H116: 152.34 | I116: 172.43 | J116: 172.43 | K116: 260.96 | L116: 377.98
A117: GAM1STRS56DEC | B117: 156.34 | C117: 126.69 | D117: 148.5 | E117: 138.63 | F117: 134.69 | G117: 136.76 | H117: 154.3 | I117: 176.33 | J117: 176.33 | K117: 298.65 | L117: 400.03
A118: GAM1STRS56FEB | B118: 256.49 | C118: 174.75 | D118: 136.97 | E118: 162.49 | F118: 153.2 | G118: 148.76 | H118: 143.98 | I118: 169.95 | J118: 169.95 | K118: 291.83 | L118: 317.55
A119: GAM1STRS56JAN | B119: 256.26 | C119: 169.33 | D119: 131.64 | E119: 151.34 | F119: 146.94 | G119: 149.17 | H119: 137.84 | I119: 164.19 | J119: 164.19 | K119: 258.65 | L119: 314.56
A120: GAM1STRS56JUL | B120: 239.83 | C120: 131.71 | D120: 145.96 | E120: 147.52 | F120: 135.6 | G120: 134.08 | H120: 148.83 | I120: 168.08 | J120: 168.08 | K120: 293.54 | L120: 366.22
A121: GAM1STRS56JUN | B121: 259.06 | C121: 138.1 | D121: 149.57 | E121: 150.34 | F121: 135.15 | G121: 136.75 | H121: 146.6 | I121: 161.79 | J121: 161.79 | K121: 297.68 | L121: 363.01
A122: GAM1STRS56MAR | B122: 266.71 | C122: 179.56 | D122: 142.12 | E122: 157.7 | F122: 158 | G122: 143.3 | H122: 146.61 | I122: 173.08 | J122: 173.08 | K122: 304.86 | L122: 352.57
A123: GAM1STRS56MAY | B123: 259.3 | C123: 147.88 | D123: 151.75 | E123: 150.73 | F123: 147.49 | G123: 136.45 | H123: 138.73 | I123: 164.38 | J123: 164.38 | K123: 304.07 | L123: 368.22
A124: GAM1STRS56NOV | B124: 176.66 | C124: 119.05 | D124: 148.97 | E124: 142.76 | F124: 132.11 | G124: 133.4 | H124: 145.96 | I124: 168.28 | J124: 168.28 | K124: 274.77 | L124: 395.03
A125: GAM1STRS56OCT | B125: 182.64 | C125: 108.35 | D125: 143.58 | E125: 147.01 | F125: 126.16 | G125: 128.36 | H125: 143.67 | I125: 161.66 | J125: 161.66 | K125: 259.69 | L125: 388.39
A126: GAM1STRS56SEP | B126: 199.17 | C126: 120.98 | D126: 139.85 | E126: 146.8 | F126: 127.05 | G126: 131.89 | H126: 146.41 | I126: 170.7 | J126: 170.7 | K126: 253.16 | L126: 395.31
A127: GAM1STRS67APR | B127: 236.19 | C127: 143.02 | D127: 131.62 | E127: 139.34 | F127: 145.66 | G127: 122.25 | H127: 133.68 | I127: 155.11 | J127: 155.11 | K127: 262.25 | L127: 325.18
A128: GAM1STRS67AUG | B128: 212.66 | C128: 129.76 | D128: 130.69 | E128: 136.33 | F128: 126.21 | G128: 128.04 | H128: 140.07 | I128: 161.41 | J128: 161.41 | K128: 240.72 | L128: 349.39
A129: GAM1STRS67DEC | B129: 140.9 | C129: 116.74 | D129: 136.85 | E129: 130.74 | F129: 125.27 | G129: 124.72 | H129: 141.28 | I129: 165.31 | J129: 165.31 | K129: 260.61 | L129: 358.43
A130: GAM1STRS67FEB | B130: 217.96 | C130: 154.7 | D130: 123.8 | E130: 147.06 | F130: 139.21 | G130: 135.46 | H130: 128.83 | I130: 152.66 | J130: 152.66 | K130: 256.52 | L130: 284.57
A131: GAM1STRS67JAN | B131: 230.76 | C131: 149.25 | D131: 122.07 | E131: 138.73 | F131: 133.5 | G131: 138.04 | H131: 123.07 | I131: 148.09 | J131: 148.09 | K131: 233.35 | L131: 278.18
A132: GAM1STRS67JUL | B132: 220.07 | C132: 125.27 | D132: 137.95 | E132: 136.86 | F132: 128.33 | G132: 126.14 | H132: 139.3 | I132: 155.46 | J132: 155.46 | K132: 264.53 | L132: 335.23
A133: GAM1STRS67JUN | B133: 231.55 | C133: 130.51 | D133: 140.82 | E133: 137.36 | F133: 126.35 | G133: 126.97 | H133: 136.8 | I133: 148.09 | J133: 148.09 | K133: 262 | L133: 333.77
A134: GAM1STRS67MAR | B134: 235.46 | C134: 157.88 | D134: 129.8 | E134: 142.72 | F134: 141.46 | G134: 128.42 | H134: 134.15 | I134: 156.52 | J134: 156.52 | K134: 268.63 | L134: 306.57
A135: GAM1STRS67MAY | B135: 229.25 | C135: 135.52 | D135: 142.24 | E135: 138.17 | F135: 135.99 | G135: 125.98 | H135: 129.84 | I135: 151.77 | J135: 151.77 | K135: 265.06 | L135: 336.28
A136: GAM1STRS67NOV | B136: 164.38 | C136: 106.29 | D136: 136.43 | E136: 131.48 | F136: 124.75 | G136: 122.92 | H136: 135.62 | I136: 155.22 | J136: 155.22 | K136: 244.77 | L136: 344.61
A137: GAM1STRS67OCT | B137: 171.54 | C137: 100.24 | D137: 132.59 | E137: 135.55 | F137: 124.72 | G137: 119.32 | H137: 133.39 | I137: 147.78 | J137: 147.78 | K137: 234.33 | L137: 351.07
A138: GAM1STRS67SEP | B138: 189.64 | C138: 114.42 | D138: 132.1 | E138: 136.83 | F138: 123.32 | G138: 126.39 | H138: 136.82 | I138: 158.65 | J138: 158.65 | K138: 230.15 | L138: 361.12
A139: GAM1STRS78APR | B139: 209.45 | C139: 133.22 | D139: 122.12 | E139: 127.1 | F139: 135.44 | G139: 112.75 | H139: 124.93 | I139: 140.76 | J139: 140.76 | K139: 233.75 | L139: 287.29
A140: GAM1STRS78AUG | B140: 198.89 | C140: 122.86 | D140: 123.4 | E140: 129.28 | F140: 116.15 | G140: 122.58 | H140: 130.33 | I140: 153.52 | J140: 153.52 | K140: 228.24 | L140: 325.07
A141: GAM1STRS78DEC | B141: 130.61 | C141: 107.68 | D141: 129.7 | E141: 122.83 | F141: 116.99 | G141: 117.91 | H141: 136.34 | I141: 153.17 | J141: 153.17 | K141: 240.49 | L141: 317.18
A142: GAM1STRS78FEB | B142: 192.51 | C142: 136.91 | D142: 114.43 | E142: 134.76 | F142: 128.31 | G142: 127.45 | H142: 123.11 | I142: 143.99 | J142: 143.99 | K142: 229.09 | L142: 252.25
A143: GAM1STRS78JAN | B143: 214.61 | C143: 139.53 | D143: 111.07 | E143: 132.38 | F143: 126.53 | G143: 127.11 | H143: 118.6 | I143: 139.14 | J143: 139.14 | K143: 216.99 | L143: 255.49
A144: GAM1STRS78JUL | B144: 200.64 | C144: 119.01 | D144: 128.07 | E144: 125.2 | F144: 123.47 | G144: 117.01 | H144: 128.63 | I144: 143.42 | J144: 143.42 | K144: 236.92 | L144: 297.28
A145: GAM1STRS78JUN | B145: 213.68 | C145: 123.9 | D145: 127.22 | E145: 125.81 | F145: 117.96 | G145: 116.79 | H145: 125.26 | I145: 134.48 | J145: 134.48 | K145: 243.93 | L145: 287.75
A146: GAM1STRS78MAR | B146: 196.3 | C146: 144.06 | D146: 119.67 | E146: 129.15 | F146: 130.86 | G146: 113.9 | H146: 125.27 | I146: 143.52 | J146: 143.52 | K146: 237.58 | L146: 278.2
A147: GAM1STRS78MAY | B147: 207.8 | C147: 126.83 | D147: 131.21 | E147: 125.28 | F147: 127.84 | G147: 118.1 | H147: 118.81 | I147: 139.64 | J147: 139.64 | K147: 244.39 | L147: 288.63
A148: GAM1STRS78NOV | B148: 156.38 | C148: 99.35 | D148: 128.26 | E148: 124.83 | F148: 121.5 | G148: 111.75 | H148: 124.5 | I148: 144.25 | J148: 144.25 | K148: 220.4 | L148: 312.3
A149: GAM1STRS78OCT | B149: 161.21 | C149: 94.71 | D149: 126.62 | E149: 127.51 | F149: 118.5 | G149: 113.27 | H149: 126.34 | I149: 140.57 | J149: 140.57 | K149: 222 | L149: 320.04
A150: GAM1STRS78SEP | B150: 176.01 | C150: 110.14 | D150: 126.48 | E150: 130.21 | F150: 115.53 | G150: 117.11 | H150: 129.33 | I150: 146.86 | J150: 146.86 | K150: 215.29 | L150: 327.24
A151: HLSTRS34APR | B151: 223.4 | C151: 141.9 | D151: 91.96 | E151: 97.35 | F151: 84.24 | G151: 95 | H151: 127.1276364 | I151: 112.22 | J151: 183.83 | K151: 275.82 | L151: 295.28
A152: HLSTRS34AUG | B152: 202.97 | C152: 101.9 | D152: 91.13 | E152: 80.93 | F152: 97.5 | G152: 103.94 | H152: 129.9 | I152: 146.55 | J152: 200.71 | K152: 276.5 | L152: 373
A153: HLSTRS34DEC | B153: 144.62 | C153: 70.75 | D153: 94.99 | E153: 60 | F153: 86.11 | G153: 111.13 | H153: 125.44 | I153: 136 | J153: 197.86 | K153: 250.5 | L153: 341.15
A154: HLSTRS34FEB | B154: 194.56 | C154: 125.72 | D154: 79.84 | E154: 95.4 | F154: 75.74 | G154: 95.16 | H154: 113.7 | I154: 133.31 | J154: 147 | K154: 210 | L154: 308.24
A155: HLSTRS34JAN | B155: 190.44 | C155: 125 | D155: 77.64 | E155: 69.01 | F155: 73.33 | G155: 93.4 | H155: 108.14 | I155: 116.89 | J155: 141.2 | K155: 199.78 | L155: 265.51
A156: HLSTRS34JUL | B156: 206 | C156: 100.12 | D156: 96.49 | E156: 81.45 | F156: 79.29 | G156: 80.43 | H156: 133.68 | I156: 134.4 | J156: 183.17 | K156: 272.99 | L156: 343
A157: HLSTRS34JUN | B157: 211.23 | C157: 118.53 | D157: 98.79 | E157: 84.65 | F157: 95.22 | G157: 98.06 | H157: 134.88 | I157: 142.18 | J157: 188.37 | K157: 272.14 | L157: 379.41
A158: HLSTRS34MAR | B158: 200.97 | C158: 151.96 | D158: 87.98 | E158: 97.25 | F158: 71.94 | G158: 101.38 | H158: 132.43 | I158: 132.29 | J158: 163.76 | K158: 261.67 | L158: 296.25
A159: HLSTRS34MAY | B159: 220.04 | C159: 127.28 | D159: 99.14 | E159: 107.88 | F159: 97.24 | G159: 106.34 | H159: 128.95 | I159: 132.34 | J159: 188.97 | K159: 262.72 | L159: 358.33
A160: HLSTRS34NOV | B160: 163.96 | C160: 76.69 | D160: 97.88 | E160: 61.88 | F160: 78.8 | G160: 111.29 | H160: 117.24 | I160: 139 | J160: 192.23 | K160: 232.5 | L160: 287.5
A161: HLSTRS34OCT | B161: 169.24 | C161: 80.81 | D161: 80.32 | E161: 77.43 | F161: 83.77 | G161: 111.76 | H161: 119.76 | I161: 138 | J161: 195.79 | K161: 282.7 | L161: 357.13
A162: HLSTRS34SEP | B162: 171.2 | C162: 127.27 | D162: 82.15 | E162: 92 | F162: 88.73 | G162: 111.06 | H162: 125.32 | I162: 136 | J162: 200 | K162: 275.73 | L162: 393.73
A163: HLSTRS45APR | B163: 203.15 | C163: 138.81 | D163: 99.28 | E163: 89.71 | F163: 78.89 | G163: 102.98 | H163: 126.79 | I163: 112.71 | J163: 181.97 | K163: 260.69 | L163: 282.38
A164: HLSTRS45AUG | B164: 185.21 | C164: 100.8 | D164: 95.78 | E164: 86.46 | F164: 88.3 | G164: 111.8 | H164: 116.16 | I164: 142.83 | J164: 199.48 | K164: 264.18 | L164: 354.52
A165: HLSTRS45DEC | B165: 96.49 | C165: 71.37 | D165: 90.08 | E165: 68.22 | F165: 81.55 | G165: 108.76 | H165: 121.61 | I165: 129.05 | J165: 186.16 | K165: 227.1 | L165: 338.25
A166: HLSTRS45FEB | B166: 162.99 | C166: 123.5 | D166: 76.29 | E166: 91.74 | F166: 67.58 | G166: 93.23 | H166: 105.96 | I166: 132.5 | J166: 150.84 | K166: 202.5 | L166: 301
A167: HLSTRS45JAN | B167: 165.88 | C167: 114.07 | D167: 71.04 | E167: 86.74 | F167: 78.89 | G167: 96.02 | H167: 101.12 | I167: 115.95 | J167: 143.52 | K167: 189.65 | L167: 265.42
A168: HLSTRS45JUL | B168: 182.12 | C168: 107.35 | D168: 95.23 | E168: 88.61 | F168: 84.55 | G168: 94.65 | H168: 118.92 | I168: 137.78 | J168: 178.05 | K168: 252.46 | L168: 329.5
A169: HLSTRS45JUN | B169: 207.48 | C169: 113.04 | D169: 92.74 | E169: 79.61 | F169: 91.09 | G169: 92.79 | H169: 118.61 | I169: 146.35 | J169: 196.7 | K169: 265.52 | L169: 356.58
A170: HLSTRS45MAR | B170: 195.62 | C170: 132.91 | D170: 70.55 | E170: 98.82 | F170: 84.84 | G170: 94.29 | H170: 118.94 | I170: 136.68 | J170: 157.23 | K170: 269.79 | L170: 288.34
A171: HLSTRS45MAY | B171: 204.34 | C171: 123.98 | D171: 90.09 | E171: 75.68 | F171: 91.37 | G171: 100.66 | H171: 124.72 | I171: 139.22 | J171: 188.77 | K171: 258.69 | L171: 324.37
A172: HLSTRS45NOV | B172: 148.34 | C172: 89.68 | D172: 96.22 | E172: 68.6 | F172: 80.31 | G172: 121.93 | H172: 126.85 | I172: 138.94 | J172: 195.8 | K172: 244.57 | L172: 318.75
A173: HLSTRS45OCT | B173: 158.34 | C173: 74.56 | D173: 86.05 | E173: 71.64 | F173: 77.5 | G173: 106.95 | H173: 160 | I173: 128.62 | J173: 186.19 | K173: 264.65 | L173: 381.09
A174: HLSTRS45SEP | B174: 156.72 | C174: 122.05 | D174: 75.58 | E174: 91 | F174: 84.07 | G174: 112.03 | H174: 122.78 | I174: 134.11 | J174: 202.85 | K174: 257.32 | L174: 382.67
A175: HLSTRS56APR | B175: 190.1 | C175: 125.36 | D175: 90.24 | E175: 84.8 | F175: 91.69 | G175: 103.38 | H175: 114.89 | I175: 115 | J175: 183.13 | K175: 234.42 | L175: 306.83
A176: HLSTRS56AUG | B176: 176.57 | C176: 103.13 | D176: 89.61 | E176: 77.4 | F176: 87.58 | G176: 109.07 | H176: 113.46 | I176: 137.85 | J176: 196.63 | K176: 231.19 | L176: 342.69
A177: HLSTRS56DEC | B177: 110.83 | C177: 63.16 | D177: 89.22 | E177: 59 | F177: 80.64 | G177: 108.93 | H177: 118.39 | I177: 131.14 | J177: 168.57 | K177: 216.15 | L177: 338.39
A178: HLSTRS56FEB | B178: 171.12 | C178: 117.78 | D178: 70.04 | E178: 78.23 | F178: 57 | G178: 93.7 | H178: 109.44 | I178: 127.78 | J178: 149.95 | K178: 218.26 | L178: 260.61
A179: HLSTRS56JAN | B179: 175.58 | C179: 117.76 | D179: 68.94 | E179: 85.1 | F179: 66 | G179: 81.93 | H179: 103.78 | I179: 113.06 | J179: 141.03 | K179: 182.44 | L179: 252.56
A180: HLSTRS56JUL | B180: 163.77 | C180: 92.3 | D180: 93.44 | E180: 73 | F180: 78.58 | G180: 109.43 | H180: 114.33 | I180: 135.85 | J180: 182.89 | K180: 255.47 | L180: 311.06
A181: HLSTRS56JUN | B181: 190.57 | C181: 100.55 | D181: 85.89 | E181: 85.38 | F181: 88.69 | G181: 89.81 | H181: 112 | I181: 141.32 | J181: 184.95 | K181: 250 | L181: 307.13
A182: HLSTRS56MAR | B182: 188.77 | C182: 122.49 | D182: 61 | E182: 85.9 | F182: 77.88 | G182: 87.88 | H182: 114.61 | I182: 130.47 | J182: 160.24 | K182: 272.21 | L182: 269.12
A183: HLSTRS56MAY | B183: 189.84 | C183: 125 | D183: 85.33 | E183: 81.36 | F183: 87.39 | G183: 93.06 | H183: 113.78 | I183: 134.06 | J183: 188.94 | K183: 230.23 | L183: 301.26
A184: HLSTRS56NOV | B184: 130.64 | C184: 72.35 | D184: 81.36 | E184: 68.11 | F184: 79.74 | G184: 113.03 | H184: 105.9 | I184: 132.53 | J184: 178.16 | K184: 249.23 | L184: 296.67
A185: HLSTRS56OCT | B185: 148.69 | C185: 57.52 | D185: 80.16 | E185: 72.23 | F185: 74.97 | G185: 106.2 | H185: 95.11 | I185: 131.26 | J185: 180.65 | K185: 231.02 | L185: 361.4
A186: HLSTRS56SEP | B186: 157.25 | C186: 112.37 | D186: 73.26 | E186: 72.32 | F186: 82.37 | G186: 104.38 | H186: 110.37 | I186: 138.31 | J186: 193.51 | K186: 228.46 | L186: 374.1
A187: HLSTRS67APR | B187: 174.05 | C187: 114 | D187: 76.84 | E187: 78.93 | F187: 90.44 | G187: 99.29 | H187: 117.89 | I187: 84 | J187: 173.68 | K187: 204.25 | L187: 261
A188: HLSTRS67AUG | B188: 164.79 | C188: 91.8 | D188: 80.94 | E188: 76.93 | F188: 89.5 | G188: 106.08 | H188: 111.67 | I188: 139 | J188: 177.33 | K188: 216.6 | L188: 332
A189: HLSTRS67DEC | B189: 105.6 | C189: 64.32 | D189: 89.96 | E189: 62.56 | F189: 86.51 | G189: 104.8 | H189: 114.75 | I189: 131.59 | J189: 175.28 | K189: 208.5 | L189: 305.5
A190: HLSTRS67FEB | B190: 163.27 | C190: 113.98 | D190: 71.03 | E190: 88.38 | F190: 68.85 | G190: 96.5 | H190: 109.19 | I190: 124.45 | J190: 143.55 | K190: 213 | L190: 232
A191: HLSTRS67JAN | B191: 162.99 | C191: 106.54 | D191: 63.15 | E191: 76.41 | F191: 85.24 | G191: 91.4 | H191: 98.13 | I191: 114.96 | J191: 109.57 | K191: 161.29 | L191: 231
A192: HLSTRS67JUL | B192: 175.06 | C192: 100.83 | D192: 85.92 | E192: 68.99 | F192: 84.38 | G192: 102.64 | H192: 112.11 | I192: 130.28 | J192: 164.5 | K192: 252.5 | L192: 298
A193: HLSTRS67JUN | B193: 185.31 | C193: 99.33 | D193: 83.47 | E193: 77.12 | F193: 86.23 | G193: 74.76 | H193: 109 | I193: 133.25 | J193: 169 | K193: 231.5 | L193: 288
A194: HLSTRS67MAR | B194: 166.57 | C194: 113.28 | D194: 57.5 | E194: 87 | F194: 70.37 | G194: 90.84 | H194: 83.59 | I194: 131.17 | J194: 154.18 | K194: 233 | L194: 237.21
A195: HLSTRS67MAY | B195: 182.68 | C195: 103.48 | D195: 86.89 | E195: 68.42 | F195: 84.37 | G195: 96.39 | H195: 111.52 | I195: 133.12 | J195: 171.34 | K195: 214.28 | L195: 278
A196: HLSTRS67NOV | B196: 132.89 | C196: 68.6 | D196: 74.57 | E196: 68.3 | F196: 75.58 | G196: 101.94 | H196: 99.84 | I196: 136.25 | J196: 178.62 | K196: 223.73 | L196: 270
A197: HLSTRS67OCT | B197: 120.69 | C197: 65.16 | D197: 75.1 | E197: 67.22 | F197: 77.45 | G197: 103.45 | H197: 96 | I197: 125.19 | J197: 177.37 | K197: 213.5 | L197: 342.5
A198: HLSTRS67SEP | B198: 145.71 | C198: 104.19 | D198: 66.83 | E198: 74 | F198: 82.72 | G198: 102.49 | H198: 109.56 | I198: 132.87 | J198: 166.5 | K198: 218.58 | L198: 333.06
A199: HLSTRS78APR | B199: 157.82 | C199: 105.25 | D199: 71.35 | E199: 75.86 | F199: 81.9 | G199: 91.5 | H199: 114.89 | I199: 125.79 | J199: 149 | K199: 189.44 | L199: 234.25
A200: HLSTRS78AUG | B200: 167.44 | C200: 87.03 | D200: 76.96 | E200: 73.5 | F200: 88.06 | G200: 98.75 | H200: 108.63 | I200: 129.74 | J200: 157.5 | K200: 219.47 | L200: 319
A201: HLSTRS78DEC | B201: 104 | C201: 57.82 | D201: 79.49 | E201: 53 | F201: 83.76 | G201: 95.95 | H201: 103.75 | I201: 134.25 | J201: 152.6 | K201: 156.5 | L201: 279
... 285 more rows

Sheet Sheet1 (hidden)
D2: Georgia Auctions - Monthly
P3: 4 | Q3: M1HFRS34APR | R3: 375.4 | T3: 4 | U3: M2HFRS34APR | V3: 344.98 | X3: 4 | Y3: FINISHEDAPR | Z3: 213.88 | AB3: 4 | AC3: HLSTRS34APR | AD3: 295.28
P4: 8 | Q4: M1HFRS34AUG | R4: 403.82 | T4: 8 | U4: M2HFRS34AUG | V4: 364.6 | X4: 8 | Y4: FINISHEDAUG | Z4: 243.14 | AB4: 8 | AC4: HLSTRS34AUG | AD4: 373
C5: Steers | I5: Heifers | P5: 12 | Q5: M1HFRS34DEC | R5: 402.94 | T5: 12 | U5: M2HFRS34DEC | V5: 364.2 | X5: 12 | Y5: FINISHEDDEC | Z5: 226.26 | AB5: 12 | AC5: HLSTRS34DEC | AD5: 341.15
C6: Medium & Large 1-2 | I6: Medium & Large 1-2 | P6: 2 | Q6: M1HFRS34FEB | R6: 336.82 | T6: 2 | U6: M2HFRS34FEB | V6: 307.52 | X6: 2 | Y6: FINISHEDFEB | Z6: 202.6 | AB6: 2 | AC6: HLSTRS34FEB | AD6: 308.24
C7: 300-400 | D7: 400-500 | E7: 500-600 | F7: 600-700 | G7: 700-800 | I7: 300-400 | J7: 400-500 | K7: 500-600 | L7: 600-700 | M7: 700-800 | P7: 1 | Q7: M1HFRS34JAN | R7: 335.62 | T7: 1 | U7: M2HFRS34JAN | V7: 301.26 | X7: 1 | Y7: FINISHEDJAN | Z7: 204.49 | AB7: 1 | AC7: HLSTRS34JAN | AD7: 265.51
B8: Jan | C8: 409.61 | D8: 358.28 | E8: 314.56 | F8: 278.18 | G8: 255.49 | I8: 342.42 | J8: 303.65 | K8: 271.85 | L8: 246.31 | M8: 224.07 | P8: 7 | Q8: M1HFRS34JUL | R8: 383.3 | T8: 7 | U8: M2HFRS34JUL | V8: 338.93 | X8: 7 | Y8: FINISHEDJUL | Z8: 237.09 | AB8: 7 | AC8: HLSTRS34JUL | AD8: 343
B9: Feb | C9: 404.84 | D9: 359.08 | E9: 317.55 | F9: 284.57 | G9: 252.25 | I9: 332.54 | J9: 306.72 | K9: 276.4 | L9: 251.01 | M9: 227.56 | P9: 6 | Q9: M1HFRS34JUN | R9: 389.58 | T9: 6 | U9: M2HFRS34JUN | V9: 348.23 | X9: 6 | Y9: FINISHEDJUN | Z9: 235.35 | AB9: 6 | AC9: HLSTRS34JUN | AD9: 379.41
B10: Mar | C10: 439.44 | D10: 393.42 | E10: 352.57 | F10: 306.57 | G10: 278.2 | I10: 377.08 | J10: 338.57 | K10: 304.52 | L10: 264.88 | M10: 246.15 | P10: 3 | Q10: M1HFRS34MAR | R10: 369.07 | T10: 3 | U10: M2HFRS34MAR | V10: 329.05 | X10: 3 | Y10: FINISHEDMAR | Z10: 207.96 | AB10: 3 | AC10: HLSTRS34MAR | AD10: 296.25
B11: Apr | C11: 434.71 | D11: 394.52 | E11: 362.83 | F11: 325.18 | G11: 287.29 | I11: 382.26 | J11: 346.47 | K11: 315.32 | L11: 277.37 | M11: 250.37 | P11: 5 | Q11: M1HFRS34MAY | R11: 387.52 | T11: 5 | U11: M2HFRS34MAY | V11: 356.06 | X11: 5 | Y11: FINISHEDMAY | Z11: 226.43 | AB11: 5 | AC11: HLSTRS34MAY | AD11: 358.33
B12: May | C12: 445 | D12: 406.26 | E12: 368.22 | F12: 336.28 | G12: 288.63 | I12: 397.94 | J12: 359.8 | K12: 329 | L12: 295.67 | M12: 254.13 | P12: 11 | Q12: M1HFRS34NOV | R12: 393.27 | T12: 11 | U12: M2HFRS34NOV | V12: 350.72 | X12: 11 | Y12: FINISHEDNOV | Z12: 221.02 | AB12: 11 | AC12: HLSTRS34NOV | AD12: 287.5
B13: Jun | C13: 429.1 | D13: 398.43 | E13: 363.01 | F13: 333.77 | G13: 287.75 | I13: 386.64 | J13: 355.47 | K13: 326.31 | L13: 299.57 | M13: 254.14 | P13: 10 | Q13: M1HFRS34OCT | R13: 400.18 | T13: 10 | U13: M2HFRS34OCT | V13: 352.48 | X13: 10 | Y13: FINISHEDOCT | Z13: 235.56 | AB13: 10 | AC13: HLSTRS34OCT | AD13: 357.13
B14: Jul | C14: 453.18 | D14: 405.39 | E14: 366.22 | F14: 335.23 | G14: 297.28 | I14: 398.78 | J14: 361.2 | K14: 331.4 | L14: 301.81 | M14: 270.25 | P14: 9 | Q14: M1HFRS34SEP | R14: 411.32 | T14: 9 | U14: M2HFRS34SEP | V14: 372.69 | X14: 9 | Y14: FINISHEDSEP | Z14: 238.64 | AB14: 9 | AC14: HLSTRS34SEP | AD14: 393.73
B15: Aug | C15: 471.44 | D15: 421.26 | E15: 377.98 | F15: 349.39 | G15: 325.07 | I15: 418.45 | J15: 378.19 | K15: 341.57 | L15: 316.82 | M15: 276.84 | P15: 4 | Q15: M1HFRS45APR | R15: 344.39 | T15: 4 | U15: M2HFRS45APR | V15: 319.05 | AB15: 4 | AC15: HLSTRS45APR | AD15: 282.38
B16: Sep | C16: 486.89 | D16: 445.27 | E16: 395.31 | F16: 361.12 | G16: 327.24 | I16: 437.78 | J16: 393.81 | K16: 354.85 | L16: 330.21 | M16: 296.96 | P16: 8 | Q16: M1HFRS45AUG | R16: 371.67 | T16: 8 | U16: M2HFRS45AUG | V16: 341.74 | X16: 4 | Y16: GAM1STRS34APR | Z16: 434.71 | AB16: 8 | AC16: HLSTRS45AUG | AD16: 354.52
B17: Oct | C17: 475.29 | D17: 425.07 | E17: 388.39 | F17: 351.07 | G17: 320.04 | I17: 413.58 | J17: 379.33 | K17: 344.7 | L17: 321.27 | M17: 282.72 | P17: 12 | Q17: M1HFRS45DEC | R17: 371.82 | T17: 12 | U17: M2HFRS45DEC | V17: 336.26 | X17: 8 | Y17: GAM1STRS34AUG | Z17: 471.44 | AB17: 12 | AC17: HLSTRS45DEC | AD17: 338.25
B18: Nov | C18: 456.7 | D18: 432.03 | E18: 395.03 | F18: 344.61 | G18: 312.3 | I18: 395.06 | J18: 367.81 | K18: 335.17 | L18: 309.89 | M18: 284.33 | P18: 2 | Q18: M1HFRS45FEB | R18: 303.83 | T18: 2 | U18: M2HFRS45FEB | V18: 265 | X18: 12 | Y18: GAM1STRS34DEC | Z18: 493.01 | AB18: 2 | AC18: HLSTRS45FEB | AD18: 301
B19: Dec | C19: 493.01 | D19: 456.6 | E19: 400.03 | F19: 358.43 | G19: 317.18 | I19: 428.32 | J19: 392 | K19: 349.48 | L19: 323.07 | M19: 291.4 | P19: 1 | Q19: M1HFRS45JAN | R19: 305.05 | T19: 1 | U19: M2HFRS45JAN | V19: 273.64 | X19: 2 | Y19: GAM1STRS34FEB | Z19: 404.84 | AB19: 1 | AC19: HLSTRS45JAN | AD19: 265.42
P20: 7 | Q20: M1HFRS45JUL | R20: 349.98 | T20: 7 | U20: M2HFRS45JUL | V20: 326.1 | X20: 1 | Y20: GAM1STRS34JAN | Z20: 409.61 | AB20: 7 | AC20: HLSTRS45JUL | AD20: 329.5
P21: 6 | Q21: M1HFRS45JUN | R21: 353 | T21: 6 | U21: M2HFRS45JUN | V21: 332.93 | X21: 7 | Y21: GAM1STRS34JUL | Z21: 453.18 | AB21: 6 | AC21: HLSTRS45JUN | AD21: 356.58
P22: 3 | Q22: M1HFRS45MAR | R22: 335 | T22: 3 | U22: M2HFRS45MAR | V22: 294.36 | X22: 6 | Y22: GAM1STRS34JUN | Z22: 429.1 | AB22: 3 | AC22: HLSTRS45MAR | AD22: 288.34
C23: 2015 | D23: 2016 | E23: 2017 | F23: 2018 | G23: 2019 | H23: 2020 | I23: 2021 | J23: 2022 | K23: 2023 | L23: 2024 | M23: 2025 | P23: 5 | Q23: M1HFRS45MAY | R23: 353.51 | T23: 5 | U23: M2HFRS45MAY | V23: 329.65 | X23: 3 | Y23: GAM1STRS34MAR | Z23: 439.44 | AB23: 5 | AC23: HLSTRS45MAY | AD23: 324.37
A24: 1 | B24: GAM1HFRS78JAN | C24: 195.9 | D24: 131.79 | E24: 99.76 | F24: 115.63 | G24: 107.42 | H24: 107.42 | I24: 99.68 | J24: 121.02 | K24: 134.16 | L24: 191.84 | M24: 224.07 | P24: 11 | Q24: M1HFRS45NOV | R24: 357.94 | T24: 11 | U24: M2HFRS45NOV | V24: 334.36 | X24: 5 | Y24: GAM1STRS34MAY | Z24: 445 | AB24: 11 | AC24: HLSTRS45NOV | AD24: 318.75
A25: 2 | B25: GAM1HFRS78FEB | C25: 179.92 | D25: 128.67 | E25: 103.19 | F25: 120.08 | G25: 114.75 | H25: 114.75 | I25: 103.79 | J25: 124.55 | K25: 140.78 | L25: 204.65 | M25: 227.56 | P25: 10 | Q25: M1HFRS45OCT | R25: 370.77 | T25: 10 | U25: M2HFRS45OCT | V25: 341.93 | X25: 11 | Y25: GAM1STRS34NOV | Z25: 456.7 | AB25: 10 | AC25: HLSTRS45OCT | AD25: 381.09
A26: 3 | B26: GAM1HFRS78MAR | C26: 193.05 | D26: 129.9 | E26: 107.78 | F26: 117.12 | G26: 118.45 | H26: 118.45 | I26: 108.63 | J26: 127.8 | K26: 154.95 | L26: 217.77 | M26: 246.15 | P26: 9 | Q26: M1HFRS45SEP | R26: 376.84 | T26: 9 | U26: M2HFRS45SEP | V26: 347.17 | X26: 10 | Y26: GAM1STRS34OCT | Z26: 475.29 | AB26: 9 | AC26: HLSTRS45SEP | AD26: 382.67
A27: 4 | B27: GAM1HFRS78APR | C27: 198.46 | D27: 124.92 | E27: 115.17 | F27: 113.99 | G27: 119.53 | H27: 119.53 | I27: 111.19 | J27: 122.3 | K27: 164.72 | L27: 206.56 | M27: 250.37 | P27: 4 | Q27: M1HFRS56APR | R27: 310 | T27: 4 | U27: M2HFRS56APR | V27: 287.18 | X27: 9 | Y27: GAM1STRS34SEP | Z27: 486.89 | AB27: 4 | AC27: HLSTRS56APR | AD27: 306.83
A28: 5 | B28: GAM1HFRS78MAY | C28: 186.81 | D28: 119.69 | E28: 116.73 | F28: 111.65 | G28: 112.22 | H28: 112.22 | I28: 105.61 | J28: 122.33 | K28: 160.67 | L28: 213.54 | M28: 254.13 | P28: 8 | Q28: M1HFRS56AUG | R28: 343.72 | T28: 8 | U28: M2HFRS56AUG | V28: 320.83 | X28: 4 | Y28: GAM1STRS45APR | Z28: 394.52 | AB28: 8 | AC28: HLSTRS56AUG | AD28: 342.69
A29: 6 | B29: GAM1HFRS78JUN | C29: 197.48 | D29: 114.44 | E29: 118.08 | F29: 109.24 | G29: 108.52 | H29: 108.52 | I29: 108.43 | J29: 119.36 | K29: 175 | L29: 208.74 | M29: 254.14 | P29: 12 | Q29: M1HFRS56DEC | R29: 338.65 | T29: 12 | U29: M2HFRS56DEC | V29: 317.18 | X29: 8 | Y29: GAM1STRS45AUG | Z29: 421.26 | AB29: 12 | AC29: HLSTRS56DEC | AD29: 338.39
A30: 7 | B30: GAM1HFRS78JUL | C30: 190.17 | D30: 110.63 | E30: 117.4 | F30: 112.63 | G30: 105.71 | H30: 105.71 | I30: 109.65 | J30: 122.33 | K30: 185.93 | L30: 214.56 | M30: 270.25 | P30: 2 | Q30: M1HFRS56FEB | R30: 274.5 | T30: 2 | U30: M2HFRS56FEB | V30: 247.51 | X30: 12 | Y30: GAM1STRS45DEC | Z30: 456.6 | AB30: 2 | AC30: HLSTRS56FEB | AD30: 260.61
A31: 8 | B31: GAM1HFRS78AUG | C31: 187.41 | D31: 112.85 | E31: 115.05 | F31: 114.57 | G31: 109.25 | H31: 109.25 | I31: 108.73 | J31: 131.2 | K31: 194.31 | L31: 191.76 | M31: 276.84 | P31: 1 | Q31: M1HFRS56JAN | R31: 277.56 | T31: 1 | U31: M2HFRS56JAN | V31: 252.84 | X31: 2 | Y31: GAM1STRS45FEB | Z31: 359.08 | AB31: 1 | AC31: HLSTRS56JAN | AD31: 252.56
A32: 9 | B32: GAM1HFRS78SEP | C32: 171.32 | D32: 95.55 | E32: 113.39 | F32: 115.89 | G32: 105.71 | H32: 105.71 | I32: 115.09 | J32: 133.35 | K32: 197.31 | L32: 184.66 | M32: 296.96 | P32: 7 | Q32: M1HFRS56JUL | R32: 326.84 | T32: 7 | U32: M2HFRS56JUL | V32: 304.42 | X32: 1 | Y32: GAM1STRS45JAN | Z32: 358.28 | AB32: 7 | AC32: HLSTRS56JUL | AD32: 311.06
A33: 10 | B33: GAM1HFRS78OCT | C33: 144.63 | D33: 80.99 | E33: 112.1 | F33: 112.33 | G33: 100.03 | H33: 100.03 | I33: 109.49 | J33: 119.56 | K33: 182.43 | L33: 187.28 | M33: 282.72 | P33: 6 | Q33: M1HFRS56JUN | R33: 326.71 | T33: 6 | U33: M2HFRS56JUN | V33: 307.1 | X33: 7 | Y33: GAM1STRS45JUL | Z33: 405.39 | AB33: 6 | AC33: HLSTRS56JUN | AD33: 307.13
A34: 11 | B34: GAM1HFRS78NOV | C34: 142.09 | D34: 86.23 | E34: 114.18 | F34: 110 | G34: 102.1 | H34: 102.1 | I34: 109.77 | J34: 123.99 | K34: 175.92 | L34: 197.31 | M34: 284.33 | P34: 3 | Q34: M1HFRS56MAR | R34: 294.88 | T34: 3 | U34: M2HFRS56MAR | V34: 264.04 | X34: 6 | Y34: GAM1STRS45JUN | Z34: 398.43 | AB34: 3 | AC34: HLSTRS56MAR | AD34: 269.12
A35: 12 | B35: GAM1HFRS78DEC | C35: 140.172 | D35: 89.04 | E35: 115.51 | F35: 112.43 | G35: 104.8 | H35: 104.8 | I35: 113.95 | J35: 129.55 | K35: 170.96 | L35: 211.63 | M35: 291.4 | P35: 5 | Q35: M1HFRS56MAY | R35: 322.61 | T35: 5 | U35: M2HFRS56MAY | V35: 305.09 | X35: 3 | Y35: GAM1STRS45MAR | Z35: 393.42 | AB35: 5 | AC35: HLSTRS56MAY | AD35: 301.26
P36: 11 | Q36: M1HFRS56NOV | R36: 328.14 | T36: 11 | U36: M2HFRS56NOV | V36: 305.16 | X36: 5 | Y36: GAM1STRS45MAY | Z36: 406.26 | AB36: 11 | AC36: HLSTRS56NOV | AD36: 296.67
P37: 10 | Q37: M1HFRS56OCT | R37: 346.34 | T37: 10 | U37: M2HFRS56OCT | V37: 317.83 | X37: 11 | Y37: GAM1STRS45NOV | Z37: 432.03 | AB37: 10 | AC37: HLSTRS56OCT | AD37: 361.4
P38: 9 | Q38: M1HFRS56SEP | R38: 350.01 | T38: 9 | U38: M2HFRS56SEP | V38: 324.9 | X38: 10 | Y38: GAM1STRS45OCT | Z38: 425.07 | AB38: 9 | AC38: HLSTRS56SEP | AD38: 374.1
P39: 4 | Q39: M1HFRS67APR | R39: 277.75 | T39: 4 | U39: M2HFRS67APR | V39: 255.58 | X39: 9 | Y39: GAM1STRS45SEP | Z39: 445.27 | AB39: 4 | AC39: HLSTRS67APR | AD39: 261
P40: 8 | Q40: M1HFRS67AUG | R40: 319.99 | T40: 8 | U40: M2HFRS67AUG | V40: 293.3 | X40: 4 | Y40: GAM1STRS56APR | Z40: 362.83 | AB40: 8 | AC40: HLSTRS67AUG | AD40: 332
P41: 12 | Q41: M1HFRS67DEC | R41: 326.06 | T41: 12 | U41: M2HFRS67DEC | V41: 282.88 | X41: 8 | Y41: GAM1STRS56AUG | Z41: 377.98 | AB41: 12 | AC41: HLSTRS67DEC | AD41: 305.5
P42: 2 | Q42: M1HFRS67FEB | R42: 244.6 | T42: 2 | U42: M2HFRS67FEB | V42: 228.01 | X42: 12 | Y42: GAM1STRS56DEC | Z42: 400.03 | AB42: 2 | AC42: HLSTRS67FEB | AD42: 232
P43: 1 | Q43: M1HFRS67JAN | R43: 248.32 | T43: 1 | U43: M2HFRS67JAN | V43: 231.62 | X43: 2 | Y43: GAM1STRS56FEB | Z43: 317.55 | AB43: 1 | AC43: HLSTRS67JAN | AD43: 231
P44: 7 | Q44: M1HFRS67JUL | R44: 304.4 | T44: 7 | U44: M2HFRS67JUL | V44: 279.79 | X44: 1 | Y44: GAM1STRS56JAN | Z44: 314.56 | AB44: 7 | AC44: HLSTRS67JUL | AD44: 298
P45: 6 | Q45: M1HFRS67JUN | R45: 296.28 | T45: 6 | U45: M2HFRS67JUN | V45: 274.22 | X45: 7 | Y45: GAM1STRS56JUL | Z45: 366.22 | AB45: 6 | AC45: HLSTRS67JUN | AD45: 288
P46: 3 | Q46: M1HFRS67MAR | R46: 260.79 | T46: 3 | U46: M2HFRS67MAR | V46: 237.07 | X46: 6 | Y46: GAM1STRS56JUN | Z46: 363.01 | AB46: 3 | AC46: HLSTRS67MAR | AD46: 237.21
P47: 5 | Q47: M1HFRS67MAY | R47: 288.56 | T47: 5 | U47: M2HFRS67MAY | V47: 269.26 | X47: 3 | Y47: GAM1STRS56MAR | Z47: 352.57 | AB47: 5 | AC47: HLSTRS67MAY | AD47: 278
P48: 11 | Q48: M1HFRS67NOV | R48: 311.3 | T48: 11 | U48: M2HFRS67NOV | V48: 278.38 | X48: 5 | Y48: GAM1STRS56MAY | Z48: 368.22 | AB48: 11 | AC48: HLSTRS67NOV | AD48: 270
P49: 10 | Q49: M1HFRS67OCT | R49: 320.46 | T49: 10 | U49: M2HFRS67OCT | V49: 294.53 | X49: 11 | Y49: GAM1STRS56NOV | Z49: 395.03 | AB49: 10 | AC49: HLSTRS67OCT | AD49: 342.5
P50: 9 | Q50: M1HFRS67SEP | R50: 326.09 | T50: 9 | U50: M2HFRS67SEP | V50: 303.12 | X50: 10 | Y50: GAM1STRS56OCT | Z50: 388.39 | AB50: 9 | AC50: HLSTRS67SEP | AD50: 333.06
P51: 4 | Q51: M1HFRS78APR | R51: 249.91 | T51: 4 | U51: M2HFRS78APR | V51: 220.69 | X51: 9 | Y51: GAM1STRS56SEP | Z51: 395.31 | AB51: 4 | AC51: HLSTRS78APR | AD51: 234.25
P52: 4 | Q52: M1HFRS78APRLOAD | R52: 262.13 | T52: 8 | U52: M2HFRS78AUG | V52: 272.13 | X52: 4 | Y52: GAM1STRS67APR | Z52: 325.18 | AB52: 8 | AC52: HLSTRS78AUG | AD52: 319
P53: 8 | Q53: M1HFRS78AUG | R53: 297.16 | T53: 12 | U53: M2HFRS78DEC | V53: 268.82 | X53: 8 | Y53: GAM1STRS67AUG | Z53: 349.39 | AB53: 12 | AC53: HLSTRS78DEC | AD53: 279
P54: 8 | Q54: M1HFRS78AUGLOAD | R54: 329.18 | T54: 2 | U54: M2HFRS78FEB | V54: 209.51 | X54: 12 | Y54: GAM1STRS67DEC | Z54: 358.43 | AB54: 2 | AC54: HLSTRS78FEB | AD54: 213.5
P55: 12 | Q55: M1HFRS78DEC | R55: 281.03 | T55: 1 | U55: M2HFRS78JAN | V55: 210.22 | X55: 2 | Y55: GAM1STRS67FEB | Z55: 284.57 | AB55: 1 | AC55: HLSTRS78JAN | AD55: 217.8
P56: 12 | Q56: M1HFRS78DECLOAD | R56: 309.77 | T56: 7 | U56: M2HFRS78JUL | V56: 253.55 | X56: 1 | Y56: GAM1STRS67JAN | Z56: 278.18 | AB56: 7 | AC56: HLSTRS78JUL | AD56: 265
P57: 2 | Q57: M1HFRS78FEB | R57: 227.22 | T57: 6 | U57: M2HFRS78JUN | V57: 242.38 | X57: 7 | Y57: GAM1STRS67JUL | Z57: 335.23 | AB57: 6 | AC57: HLSTRS78JUN | AD57: 284
P58: 2 | Q58: M1HFRS78FEBLOAD | R58: 242.43 | T58: 3 | U58: M2HFRS78MAR | V58: 202.07 | X58: 6 | Y58: GAM1STRS67JUN | Z58: 333.77 | AB58: 3 | AC58: HLSTRS78MAR | AD58: 226.5
P59: 1 | Q59: M1HFRS78JAN | R59: 232.81 | T59: 5 | U59: M2HFRS78MAY | V59: 236.27 | X59: 3 | Y59: GAM1STRS67MAR | Z59: 306.57 | AB59: 5 | AC59: HLSTRS78MAY | AD59: 242
P60: 1 | Q60: M1HFRS78JANLOAD | R60: 248.78 | T60: 11 | U60: M2HFRS78NOV | V60: 258.08 | X60: 5 | Y60: GAM1STRS67MAY | Z60: 336.28 | AB60: 11 | AC60: HLSTRS78NOV | AD60: 263
P61: 7 | Q61: M1HFRS78JUL | R61: 270.28 | T61: 10 | U61: M2HFRS78OCT | V61: 264.75 | X61: 11 | Y61: GAM1STRS67NOV | Z61: 344.61 | AB61: 10 | AC61: HLSTRS78OCT | AD61: 303
P62: 7 | Q62: M1HFRS78JULLOAD | R62: 308.68 | T62: 9 | U62: M2HFRS78SEP | V62: 278.77 | X62: 10 | Y62: GAM1STRS67OCT | Z62: 351.07 | AB62: 9 | AC62: HLSTRS78SEP | AD62: 327
P63: 6 | Q63: M1HFRS78JUN | R63: 264.2 | X63: 9 | Y63: GAM1STRS67SEP | Z63: 361.12
P64: 6 | Q64: M1HFRS78JUNLOAD | R64: 287.91 | X64: 4 | Y64: GAM1STRS78APR | Z64: 287.29
P65: 3 | Q65: M1HFRS78MAR | R65: 237.84 | T65: 4 | U65: M2STRS34APR | V65: 389.98 | X65: 8 | Y65: GAM1STRS78AUG | Z65: 325.07
P66: 3 | Q66: M1HFRS78MARLOAD | R66: 251.74 | T66: 8 | U66: M2STRS34AUG | V66: 399.78 | X66: 12 | Y66: GAM1STRS78DEC | Z66: 317.18
P67: 5 | Q67: M1HFRS78MAY | R67: 260.18 | T67: 12 | U67: M2STRS34DEC | V67: 414.23 | X67: 2 | Y67: GAM1STRS78FEB | Z67: 252.25
P68: 5 | Q68: M1HFRS78MAYLOAD | R68: 279.23 | T68: 2 | U68: M2STRS34FEB | V68: 343.01 | X68: 1 | Y68: GAM1STRS78JAN | Z68: 255.49
P69: 11 | Q69: M1HFRS78NOV | R69: 287.63 | T69: 1 | U69: M2STRS34JAN | V69: 318.43 | X69: 7 | Y69: GAM1STRS78JUL | Z69: 297.28
P70: 11 | Q70: M1HFRS78NOVLOAD | R70: 302.56 | T70: 7 | U70: M2STRS34JUL | V70: 384.78 | X70: 6 | Y70: GAM1STRS78JUN | Z70: 287.75
P71: 10 | Q71: M1HFRS78OCT | R71: 314.88 | T71: 6 | U71: M2STRS34JUN | V71: 387.95 | X71: 3 | Y71: GAM1STRS78MAR | Z71: 278.2
P72: 10 | Q72: M1HFRS78OCTLOAD | R72: 337.02 | T72: 3 | U72: M2STRS34MAR | V72: 363.59 | X72: 5 | Y72: GAM1STRS78MAY | Z72: 288.63
P73: 9 | Q73: M1HFRS78SEP | R73: 307.66 | T73: 5 | U73: M2STRS34MAY | V73: 369.16 | X73: 11 | Y73: GAM1STRS78NOV | Z73: 312.3
P74: 9 | Q74: M1HFRS78SEPLOAD | R74: 341.18 | T74: 11 | U74: M2STRS34NOV | V74: 393.5 | X74: 10 | Y74: GAM1STRS78OCT | Z74: 320.04
T75: 10 | U75: M2STRS34OCT | V75: 399.7 | X75: 9 | Y75: GAM1STRS78SEP | Z75: 327.24
T76: 9 | U76: M2STRS34SEP | V76: 423.72
P77: 4 | Q77: M1STRS34APR | R77: 425.5 | T77: 4 | U77: M2STRS45APR | V77: 358.65 | X77: 4 | Y77: GAM1HFRS34APR | Z77: 382.26
P78: 8 | Q78: M1STRS34AUG | R78: 452.3 | T78: 8 | U78: M2STRS45AUG | V78: 385.11 | X78: 8 | Y78: GAM1HFRS34AUG | Z78: 418.45
P79: 12 | Q79: M1STRS34DEC | R79: 451.16 | T79: 12 | U79: M2STRS45DEC | V79: 385.95 | X79: 12 | Y79: GAM1HFRS34DEC | Z79: 428.32
P80: 2 | Q80: M1STRS34FEB | R80: 384.78 | T80: 2 | U80: M2STRS45FEB | V80: 303.13 | X80: 2 | Y80: GAM1HFRS34FEB | Z80: 332.54
P81: 1 | Q81: M1STRS34JAN | R81: 386.43 | T81: 1 | U81: M2STRS45JAN | V81: 300.52 | X81: 1 | Y81: GAM1HFRS34JAN | Z81: 342.42
P82: 7 | Q82: M1STRS34JUL | R82: 424.81 | T82: 7 | U82: M2STRS45JUL | V82: 368.2 | X82: 7 | Y82: GAM1HFRS34JUL | Z82: 398.78
P83: 6 | Q83: M1STRS34JUN | R83: 427.99 | T83: 6 | U83: M2STRS45JUN | V83: 362.34 | X83: 6 | Y83: GAM1HFRS34JUN | Z83: 386.64
P84: 3 | Q84: M1STRS34MAR | R84: 424 | T84: 3 | U84: M2STRS45MAR | V84: 324.99 | X84: 3 | Y84: GAM1HFRS34MAR | Z84: 377.08
P85: 5 | Q85: M1STRS34MAY | R85: 444.93 | T85: 5 | U85: M2STRS45MAY | V85: 368.05 | X85: 5 | Y85: GAM1HFRS34MAY | Z85: 397.94
P86: 11 | Q86: M1STRS34NOV | R86: 440.83 | T86: 11 | U86: M2STRS45NOV | V86: 379.12 | X86: 11 | Y86: GAM1HFRS34NOV | Z86: 395.06
P87: 10 | Q87: M1STRS34OCT | R87: 452.03 | T87: 10 | U87: M2STRS45OCT | V87: 377.25 | X87: 10 | Y87: GAM1HFRS34OCT | Z87: 413.58
P88: 9 | Q88: M1STRS34SEP | R88: 473.27 | T88: 9 | U88: M2STRS45SEP | V88: 375.72 | X88: 9 | Y88: GAM1HFRS34SEP | Z88: 437.78
P89: 4 | Q89: M1STRS45APR | R89: 394.2 | T89: 4 | U89: M2STRS56APR | V89: 328.35 | X89: 4 | Y89: GAM1HFRS45APR | Z89: 346.47
P90: 8 | Q90: M1STRS45AUG | R90: 416.78 | T90: 8 | U90: M2STRS56AUG | V90: 359.92 | X90: 8 | Y90: GAM1HFRS45AUG | Z90: 378.19
P91: 12 | Q91: M1STRS45DEC | R91: 420.29 | T91: 12 | U91: M2STRS56DEC | V91: 338 | X91: 12 | Y91: GAM1HFRS45DEC | Z91: 392
P92: 2 | Q92: M1STRS45FEB | R92: 347.66 | T92: 2 | U92: M2STRS56FEB | V92: 274.99 | X92: 2 | Y92: GAM1HFRS45FEB | Z92: 306.72
P93: 1 | Q93: M1STRS45JAN | R93: 345.45 | T93: 1 | U93: M2STRS56JAN | V93: 275.78 | X93: 1 | Y93: GAM1HFRS45JAN | Z93: 303.65
P94: 7 | Q94: M1STRS45JUL | R94: 389.92 | T94: 7 | U94: M2STRS56JUL | V94: 337.19 | X94: 7 | Y94: GAM1HFRS45JUL | Z94: 361.2
P95: 6 | Q95: M1STRS45JUN | R95: 396.41 | T95: 6 | U95: M2STRS56JUN | V95: 337.32 | X95: 6 | Y95: GAM1HFRS45JUN | Z95: 355.47
P96: 3 | Q96: M1STRS45MAR | R96: 380.49 | T96: 3 | U96: M2STRS56MAR | V96: 293.99 | X96: 3 | Y96: GAM1HFRS45MAR | Z96: 338.57
P97: 5 | Q97: M1STRS45MAY | R97: 405.28 | T97: 5 | U97: M2STRS56MAY | V97: 330.53 | X97: 5 | Y97: GAM1HFRS45MAY | Z97: 359.8
P98: 11 | Q98: M1STRS45NOV | R98: 414.02 | T98: 11 | U98: M2STRS56NOV | V98: 341.97 | X98: 11 | Y98: GAM1HFRS45NOV | Z98: 367.81
P99: 10 | Q99: M1STRS45OCT | R99: 410.21 | T99: 10 | U99: M2STRS56OCT | V99: 350.9 | X99: 10 | Y99: GAM1HFRS45OCT | Z99: 379.33
P100: 9 | Q100: M1STRS45SEP | R100: 420.6 | T100: 9 | U100: M2STRS56SEP | V100: 356.17 | X100: 9 | Y100: GAM1HFRS45SEP | Z100: 393.81
P101: 4 | Q101: M1STRS56APR | R101: 357.09 | T101: 4 | U101: M2STRS67APR | V101: 291.09 | X101: 4 | Y101: GAM1HFRS56APR | Z101: 315.32
P102: 8 | Q102: M1STRS56AUG | R102: 380.83 | T102: 8 | U102: M2STRS67AUG | V102: 337.64 | X102: 8 | Y102: GAM1HFRS56AUG | Z102: 341.57
P103: 12 | Q103: M1STRS56DEC | R103: 383.14 | T103: 12 | U103: M2STRS67DEC | V103: 324.76 | X103: 12 | Y103: GAM1HFRS56DEC | Z103: 349.48
P104: 2 | Q104: M1STRS56FEB | R104: 308.61 | T104: 2 | U104: M2STRS67FEB | V104: 346.48 | X104: 2 | Y104: GAM1HFRS56FEB | Z104: 276.4
P105: 1 | Q105: M1STRS56JAN | R105: 309.86 | T105: 1 | U105: M2STRS67JAN | V105: 251.94 | X105: 1 | Y105: GAM1HFRS56JAN | Z105: 271.85
P106: 7 | Q106: M1STRS56JUL | R106: 365.03 | T106: 7 | U106: M2STRS67JUL | V106: 314.07 | X106: 7 | Y106: GAM1HFRS56JUL | Z106: 331.4
P107: 6 | Q107: M1STRS56JUN | R107: 363.4 | T107: 6 | U107: M2STRS67JUN | V107: 310.11 | X107: 6 | Y107: GAM1HFRS56JUN | Z107: 326.31
P108: 3 | Q108: M1STRS56MAR | R108: 336.2 | T108: 3 | U108: M2STRS67MAR | V108: 270.96 | X108: 3 | Y108: GAM1HFRS56MAR | Z108: 304.52
P109: 5 | Q109: M1STRS56MAY | R109: 363.32 | T109: 5 | U109: M2STRS67MAY | V109: 306.37 | X109: 5 | Y109: GAM1HFRS56MAY | Z109: 329
P110: 11 | Q110: M1STRS56NOV | R110: 373.97 | T110: 11 | U110: M2STRS67NOV | V110: 315.95 | X110: 11 | Y110: GAM1HFRS56NOV | Z110: 335.17
P111: 10 | Q111: M1STRS56OCT | R111: 380.32 | T111: 10 | U111: M2STRS67OCT | V111: 332.83 | X111: 10 | Y111: GAM1HFRS56OCT | Z111: 344.7
P112: 9 | Q112: M1STRS56SEP | R112: 383.41 | T112: 9 | U112: M2STRS67SEP | V112: 334.74 | X112: 9 | Y112: GAM1HFRS56SEP | Z112: 354.85
P113: 4 | Q113: M1STRS67APR | R113: 317.46 | T113: 4 | U113: M2STRS78APR | V113: 262.73 | X113: 4 | Y113: GAM1HFRS67APR | Z113: 277.37
P114: 8 | Q114: M1STRS67AUG | R114: 353.26 | T114: 8 | U114: M2STRS78AUG | V114: 307.04 | X114: 8 | Y114: GAM1HFRS67AUG | Z114: 316.82
P115: 12 | Q115: M1STRS67DEC | R115: 347.1 | T115: 12 | U115: M2STRS78DEC | V115: 299.16 | X115: 12 | Y115: GAM1HFRS67DEC | Z115: 323.07
P116: 2 | Q116: M1STRS67FEB | R116: 276.44 | T116: 2 | U116: M2STRS78FEB | V116: 221.25 | X116: 2 | Y116: GAM1HFRS67FEB | Z116: 251.01
P117: 1 | Q117: M1STRS67JAN | R117: 280.39 | T117: 1 | U117: M2STRS78JAN | V117: 236.16 | X117: 1 | Y117: GAM1HFRS67JAN | Z117: 246.31
P118: 7 | Q118: M1STRS67JUL | R118: 338.9 | T118: 7 | U118: M2STRS78JUL | V118: 295.65 | X118: 7 | Y118: GAM1HFRS67JUL | Z118: 301.81
P119: 6 | Q119: M1STRS67JUN | R119: 330.9 | T119: 6 | U119: M2STRS78JUN | V119: 278.04 | X119: 6 | Y119: GAM1HFRS67JUN | Z119: 299.57
P120: 3 | Q120: M1STRS67MAR | R120: 299.14 | T120: 3 | U120: M2STRS78MAR | V120: 251.28 | X120: 3 | Y120: GAM1HFRS67MAR | Z120: 264.88
P121: 5 | Q121: M1STRS67MAY | R121: 329.31 | T121: 5 | U121: M2STRS78MAY | V121: 271.89 | X121: 5 | Y121: GAM1HFRS67MAY | Z121: 295.67
P122: 11 | Q122: M1STRS67NOV | R122: 344.07 | T122: 11 | U122: M2STRS78NOV | V122: 294.63 | X122: 11 | Y122: GAM1HFRS67NOV | Z122: 309.89
P123: 10 | Q123: M1STRS67OCT | R123: 354.84 | T123: 10 | U123: M2STRS78OCT | V123: 314.48 | X123: 10 | Y123: GAM1HFRS67OCT | Z123: 321.27
P124: 9 | Q124: M1STRS67SEP | R124: 358.35 | T124: 9 | U124: M2STRS78SEP | V124: 321.17 | X124: 9 | Y124: GAM1HFRS67SEP | Z124: 330.21
P125: 4 | Q125: M1STRS78APR | R125: 290.36 | X125: 4 | Y125: GAM1HFRS78APR | Z125: 250.37
P126: 4 | Q126: M1STRS78APRLOAD | R126: 278.38 | X126: 8 | Y126: GAM1HFRS78AUG | Z126: 276.84
P127: 8 | Q127: M1STRS78AUG | R127: 331.57 | X127: 12 | Y127: GAM1HFRS78DEC | Z127: 291.4
P128: 8 | Q128: M1STRS78AUGLOAD | R128: 362.95 | X128: 2 | Y128: GAM1HFRS78FEB | Z128: 227.56
P129: 12 | Q129: M1STRS78DEC | R129: 322.98 | X129: 1 | Y129: GAM1HFRS78JAN | Z129: 224.07
P130: 12 | Q130: M1STRS78DECLOAD | R130: 349.5 | X130: 7 | Y130: GAM1HFRS78JUL | Z130: 270.25
P131: 2 | Q131: M1STRS78FEB | R131: 249.76 | X131: 6 | Y131: GAM1HFRS78JUN | Z131: 254.14
P132: 2 | Q132: M1STRS78FEBLOAD | R132: 255.83 | X132: 3 | Y132: GAM1HFRS78MAR | Z132: 246.15
P133: 1 | Q133: M1STRS78JAN | R133: 258.28 | X133: 5 | Y133: GAM1HFRS78MAY | Z133: 254.13
P134: 1 | Q134: M1STRS78JANLOAD | R134: 271.64 | X134: 11 | Y134: GAM1HFRS78NOV | Z134: 284.33 | AS134: 1 | AT134: M1STRS78JANLOAD | AU134: 116.8428571 | AV134: 143.059375 | AW134: 140.8888889 | AX134: 163.6666667 | AY134: 232.35 | AZ134: 158.5 | BA134: 131.25 | BB134: 146.85 | BC134: 146.87 | BD134: 146.82 | BE134: 136.23
P135: 7 | Q135: M1STRS78JUL | R135: 315.89 | X135: 10 | Y135: GAM1HFRS78OCT | Z135: 282.72 | AS135: 2 | AT135: M1STRS78FEBLOAD | AU135: 118.2 | AV135: 151.38 | AW135: 136.5 | AX135: 163.57 | AY135: 182.5 | AZ135: 143.88 | BA135: 122.85 | BB135: 146.72 | BC135: 143.19 | BD135: 137.42 | BE135: 138.82
P136: 7 | Q136: M1STRS78JULLOAD | R136: 338.22 | X136: 9 | Y136: GAM1HFRS78SEP | Z136: 296.96 | AS136: 3 | AT136: M1STRS78MARLOAD | AU136: 121.28 | AV136: 144.08 | AW136: 139.58 | AX136: 170.53 | AY136: 201.62 | AZ136: 145 | BA136: 116.27 | BB136: 140.45 | BC136: 142.29 | BD136: 133.51 | BE136: 137.52
P137: 6 | Q137: M1STRS78JUN | R137: 304.29 | AS137: 4 | AT137: M1STRS78APRLOAD | AU137: 128.05 | AV137: 142.03 | AW137: 131.31 | AX137: 172.76 | AY137: 207.5 | AZ137: 153.58 | BA137: 133.75 | BB137: 137.24 | BC137: 145.8 | BD137: 110.57
P138: 6 | Q138: M1STRS78JUNLOAD | R138: 326.03 | AS138: 5 | AT138: M1STRS78MAYLOAD | AU138: 123.6 | AV138: 144.3 | AW138: 129.68 | AX138: 183.25 | AY138: 210.26 | AZ138: 134.25 | BA138: 144.55 | BB138: 139.99 | BC138: 142.27 | BD138: 127.5
P139: 3 | Q139: M1STRS78MAR | R139: 268.54 | AS139: 6 | AT139: M1STRS78JUNLOAD | AU139: 120.85 | AV139: 144.64 | AW139: 134.78 | AX139: 199.15 | AY139: 207 | AZ139: 135.6 | BA139: 146.13 | BB139: 146 | BC139: 137.04 | BE139: 150.2
P140: 3 | Q140: M1STRS78MARLOAD | R140: 284.1 | AS140: 7 | AT140: M1STRS78JULLOAD | AU140: 134.36 | AV140: 130.41 | AW140: 142.14 | AX140: 227 | AY140: 222.17 | AZ140: 139.62 | BA140: 149.68 | BB140: 150.67 | BC140: 142.54 | BD140: 134.52 | BE140: 157.05
P141: 5 | Q141: M1STRS78MAY | R141: 297.36 | AS141: 8 | AT141: M1STRS78AUGLOAD | AU141: 127.88 | AV141: 134.26 | AW141: 149.67 | AX141: 213.98 | AY141: 217.87 | AZ141: 144.31 | BA141: 147.25 | BB141: 149.25 | BC141: 134.2 | BD141: 143.55 | BE141: 159.2
P142: 5 | Q142: M1STRS78MAYLOAD | R142: 310.75 | AS142: 9 | AT142: M1STRS78SEPLOAD | AU142: 122.21 | AV142: 139.33 | AW142: 154.85 | AX142: 226.32 | AY142: 196.28 | AZ142: 128.25 | BA142: 143.08 | BB142: 154.18 | BC142: 136.15 | BD142: 138.11 | BE142: 159.39
P143: 11 | Q143: M1STRS78NOV | R143: 319.04 | AS143: 10 | AT143: M1STRS78OCTLOAD | AU143: 131.66 | AV143: 140.68 | AW143: 158.75 | AX143: 228.35 | AY143: 174.75 | AZ143: 120.23 | BA143: 153.92 | BB143: 155.97 | BC143: 142.81 | BD143: 139.01 | BE143: 156.28
P144: 11 | Q144: M1STRS78NOVLOAD | R144: 326.55 | AS144: 11 | AT144: M1STRS78NOVLOAD | AU144: 136.63 | AV144: 140.14 | AW144: 162.67 | AX144: 231.69 | AY144: 169.43 | AZ144: 119.42 | BA144: 156.35 | BB144: 149.92 | BC144: 145.96 | BD144: 137.49 | BE144: 159.21
P145: 10 | Q145: M1STRS78OCT | R145: 335.96 | AS145: 12 | AT145: M1STRS78DECLOAD | AU145: 135.42 | AV145: 141.31 | AW145: 156.88 | AX145: 238.63 | AY145: 148.08 | AZ145: 128 | BA145: 154.62 | BB145: 145.21 | BC145: 140.96 | BD145: 140.36 | BE145: 165.54
P146: 10 | Q146: M1STRS78OCTLOAD | R146: 376.63
P147: 9 | Q147: M1STRS78SEP | R147: 338.89
P148: 9 | Q148: M1STRS78SEPLOAD | R148: 354.5
P149: 4 | Q149: M1STRS89APRLOAD | R149: 275.9
P150: 8 | Q150: M1STRS89AUGLOAD | R150: 342.22
P151: 12 | Q151: M1STRS89DECLOAD | R151: 328.47
P152: 2 | Q152: M1STRS89FEBLOAD | R152: 258.74
P153: 1 | Q153: M1STRS89JANLOAD | R153: 260.38
P154: 7 | Q154: M1STRS89JULLOAD | R154: 319.15
P155: 6 | Q155: M1STRS89JUNLOAD | R155: 299.34 | T155: 1 | U155: M1HFRS78JANLOAD
P156: 3 | Q156: M1STRS89MARLOAD | R156: 270.85 | T156: 2 | U156: M1HFRS78FEBLOAD
P157: 5 | Q157: M1STRS89MAYLOAD | R157: 284.46 | T157: 3 | U157: M1HFRS78MARLOAD | AS157: 1 | AT157: M1STRS89JANLOAD | AU157: 113.78125 | AV157: 140.325 | AW157: 139.5125 | AX157: 158.2308824 | AY157: 208.8742308 | AZ157: 147.47 | BA157: 131.07 | BB157: 145.81 | BC157: 144.34 | BD157: 146.07 | BE157: 136.08
P158: 11 | Q158: M1STRS89NOVLOAD | R158: 327.86 | T158: 4 | U158: M1HFRS78APRLOAD | AS158: 2 | AT158: M1STRS89FEBLOAD | AU158: 117.41 | AV158: 144.17 | AW158: 130.6 | AX158: 152.13 | AY158: 185.42 | AZ158: 140.21 | BA158: 123.67 | BB158: 146.97 | BC158: 143.85 | BD158: 138.37 | BE158: 139.32
P159: 10 | Q159: M1STRS89OCTLOAD | R159: 347.33 | T159: 5 | U159: M1HFRS78MAYLOAD | AS159: 3 | AT159: M1STRS89MARLOAD | AU159: 118.5 | AV159: 140.42 | AW159: 126.74 | AX159: 159.89 | AY159: 194.33 | AZ159: 141.75 | BA159: 128.03 | BB159: 142.19 | BC159: 143.14 | BD159: 128.73 | BE159: 138.11
P160: 9 | Q160: M1STRS89SEPLOAD | R160: 350.85 | T160: 6 | U160: M1HFRS78JUNLOAD | AS160: 4 | AT160: M1STRS89APRLOAD | AU160: 123.78 | AV160: 133.95 | AW160: 125.69 | AX160: 167.31 | AY160: 201.84 | AZ160: 139.01 | BA160: 135.41 | BB160: 138.13 | BC160: 145.75 | BD160: 116.8 | BE160: 145.41
T161: 7 | U161: M1HFRS78JULLOAD | AS161: 5 | AT161: M1STRS89MAYLOAD | AU161: 119.86 | AV161: 138.43 | AW161: 124.66 | AX161: 175.46 | AY161: 211.66 | AZ161: 137.25 | BA161: 143.51 | BB161: 137.35 | BC161: 137.42 | BD161: 127.5 | BE161: 134.9
T162: 8 | U162: M1HFRS78AUGLOAD | AS162: 6 | AT162: M1STRS89JUNLOAD | AU162: 122.68 | AV162: 140.65 | AW162: 127.47 | AX162: 194.69 | AY162: 211.09 | AZ162: 138.86 | BA162: 150.92 | BB162: 147.54 | BC162: 137.43 | BD162: 132.5 | BE162: 152
T163: 9 | U163: M1HFRS78SEPLOAD | AS163: 7 | AT163: M1STRS89JULLOAD | AU163: 129.11 | AV163: 129.15 | AW163: 136.83 | AX163: 210.67 | AY163: 208.89 | AZ163: 135.15 | BA163: 148.58 | BB163: 151.81 | BC163: 142.28 | BD163: 136.58 | BE163: 158.25
T164: 10 | U164: M1HFRS78OCTLOAD | AS164: 8 | AT164: M1STRS89AUGLOAD | AU164: 122.87 | AV164: 128.09 | AW164: 143.24 | AX164: 211.16 | AY164: 202.03 | AZ164: 139.05 | BA164: 146.85 | BB164: 149.34 | BC164: 136.36 | BD164: 143.3 | BE164: 158.58
T165: 11 | U165: M1HFRS78NOVLOAD | AS165: 9 | AT165: M1STRS89SEPLOAD | AU165: 120.84 | AV165: 132.64 | AW165: 142.9 | AX165: 211.34 | AY165: 184.85 | AZ165: 128.2 | BA165: 146.33 | BB165: 152.85 | BC165: 137.41 | BD165: 137.71 | BE165: 158.16
T166: 12 | U166: M1HFRS78DECLOAD | AS166: 10 | AT166: M1STRS89OCTLOAD | AU166: 126.58 | AV166: 135.03 | AW166: 151.88 | AX166: 225.19 | AY166: 172.91 | AZ166: 116.1 | BA166: 153.52 | BB166: 156.8 | BC166: 142.73 | BD166: 140.48 | BE166: 157.73
P167: 1 | Q167: M1STRS78JANLOAD | AS167: 11 | AT167: M1STRS89NOVLOAD | AU167: 132.71 | AV167: 137.63 | AW167: 156.25 | AX167: 224.72 | AY167: 170.98 | AZ167: 124.23 | BA167: 158.24 | BB167: 150.23 | BC167: 146.38 | BD167: 137.52 | BE167: 158.02
P168: 2 | Q168: M1STRS78FEBLOAD | AE168: M1STRS78JANLOAD | AF168: 143.059375 | AG168: 140.8888889 | AH168: 163.6666667 | AI168: 232.35 | AJ168: 158.5 | AK168: 131.25 | AL168: 146.85 | AM168: 146.87 | AN168: 146.82 | AO168: 136.23 | AP168: 181.1 | AS168: 12 | AT168: M1STRS89DECLOAD | AU168: 133.47 | AV168: 137.27 | AW168: 153.76 | AX168: 218.4 | AY168: 144.96 | AZ168: 124.53 | BA168: 145.99 | BB168: 146.12 | BC168: 140.88 | BD168: 140.15 | BE168: 165.41
P169: 3 | Q169: M1STRS78MARLOAD | AE169: M1STRS78FEBLOAD | AF169: 151.38 | AG169: 136.5 | AH169: 163.57 | AI169: 182.5 | AJ169: 143.88 | AK169: 122.85 | AL169: 146.72 | AM169: 143.19 | AN169: 137.42 | AO169: 138.82 | AP169: 185.71
P170: 4 | Q170: M1STRS78APRLOAD | AE170: M1STRS78MARLOAD | AF170: 144.08 | AG170: 139.58 | AH170: 170.53 | AI170: 201.62 | AJ170: 145 | AK170: 116.27 | AL170: 140.45 | AM170: 142.29 | AN170: 133.51 | AO170: 137.52 | AP170: 189.94
P171: 5 | Q171: M1STRS78MAYLOAD | AE171: M1STRS78APRLOAD | AF171: 142.03 | AG171: 131.31 | AH171: 172.76 | AI171: 207.5 | AJ171: 153.58 | AK171: 133.75 | AL171: 137.24 | AM171: 145.8 | AN171: 110.57 | AO171: 138.17 | AP171: 197.89
P172: 6 | Q172: M1STRS78JUNLOAD | AE172: M1STRS78MAYLOAD | AF172: 144.3 | AG172: 129.68 | AH172: 183.25 | AI172: 210.26 | AJ172: 134.25 | AK172: 144.55 | AL172: 139.99 | AM172: 142.27 | AN172: 127.5 | AO172: 144.19 | AP172: 202.52
P173: 7 | Q173: M1STRS78JULLOAD | AE173: M1STRS78JUNLOAD | AF173: 144.64 | AG173: 134.78 | AH173: 199.15 | AI173: 207 | AJ173: 135.6 | AK173: 146.13 | AL173: 146 | AM173: 137.04 | AN173: 127.34 | AO173: 150.2 | AP173: 234.81
P174: 8 | Q174: M1STRS78AUGLOAD | AE174: M1STRS78JULLOAD | AF174: 130.41 | AG174: 142.14 | AH174: 227 | AI174: 222.17 | AJ174: 139.62 | AK174: 149.68 | AL174: 150.67 | AM174: 142.54 | AN174: 134.52 | AO174: 157.05 | AP174: 246.8
P175: 9 | Q175: M1STRS78SEPLOAD | AE175: M1STRS78AUGLOAD | AF175: 134.26 | AG175: 149.67 | AH175: 213.98 | AI175: 217.87 | AJ175: 144.31 | AK175: 147.25 | AL175: 149.25 | AM175: 134.2 | AN175: 143.55 | AO175: 159.2 | AP175: 248.42
P176: 10 | Q176: M1STRS78OCTLOAD | AE176: M1STRS78SEPLOAD | AF176: 139.33 | AG176: 154.85 | AH176: 226.32 | AI176: 196.28 | AJ176: 128.25 | AK176: 143.08 | AL176: 154.18 | AM176: 136.15 | AN176: 138.11 | AO176: 159.39 | AP176: 252.92
P177: 11 | Q177: M1STRS78NOVLOAD | AE177: M1STRS78OCTLOAD | AF177: 140.68 | AG177: 158.75 | AH177: 228.35 | AI177: 174.75 | AJ177: 120.23 | AK177: 153.92 | AL177: 155.97 | AM177: 142.81 | AN177: 139.01 | AO177: 156.28 | AP177: 244.5
P178: 12 | Q178: M1STRS78DECLOAD | AE178: M1STRS78NOVLOAD | AF178: 140.14 | AG178: 162.67 | AH178: 231.69 | AI178: 169.43 | AJ178: 119.42 | AK178: 156.35 | AL178: 149.92 | AM178: 145.96 | AN178: 137.49 | AO178: 159.21 | AP178: 239.92
AE179: M1STRS78DECLOAD | AF179: 141.31 | AG179: 156.88 | AH179: 238.63 | AI179: 148.08 | AJ179: 128 | AK179: 154.62 | AL179: 145.21 | AM179: 140.96 | AN179: 140.36 | AO179: 165.54 | AP179: 215.9
P180: 1 | Q180: M1STRS89JANLOAD
P181: 2 | Q181: M1STRS89FEBLOAD | AF181: =AF177-AF178 -> 0.54 | AG181: -3.92 | AH181: -3.34 | AI181: 5.32 | AJ181: 0.81 | AK181: -2.43 | AL181: 6.05 | AM181: -3.15 | AN181: =AN177-AN178 -> 1.52 | AO181: =AO177-AO178 -> -2.93 | AP181: =AVERAGE(AF181:AO181) -> -0.153
P182: 3 | Q182: M1STRS89MARLOAD
P183: 4 | Q183: M1STRS89APRLOAD
P184: 5 | Q184: M1STRS89MAYLOAD
P185: 6 | Q185: M1STRS89JUNLOAD
P186: 7 | Q186: M1STRS89JULLOAD | AE186: M1STRS89JANLOAD | AF186: 140.325 | AG186: 139.5125 | AH186: 158.2308824 | AI186: 208.8742308 | AJ186: 147.47 | AK186: 131.07 | AL186: 145.81 | AM186: 144.34 | AN186: 146.07 | AO186: 136.08 | AP186: 181.74
P187: 8 | Q187: M1STRS89AUGLOAD | AE187: M1STRS89FEBLOAD | AF187: 144.17 | AG187: 130.6 | AH187: 152.13 | AI187: 185.42 | AJ187: 140.21 | AK187: 123.67 | AL187: 146.97 | AM187: 143.85 | AN187: 138.37 | AO187: 139.32 | AP187: 185.84
P188: 9 | Q188: M1STRS89SEPLOAD | AE188: M1STRS89MARLOAD | AF188: 140.42 | AG188: 126.74 | AH188: 159.89 | AI188: 194.33 | AJ188: 141.75 | AK188: 128.03 | AL188: 142.19 | AM188: 143.14 | AN188: 128.73 | AO188: 138.11 | AP188: 189.61
P189: 10 | Q189: M1STRS89OCTLOAD | AE189: M1STRS89APRLOAD | AF189: 133.95 | AG189: 125.69 | AH189: 167.31 | AI189: 201.84 | AJ189: 139.01 | AK189: 135.41 | AL189: 138.13 | AM189: 145.75 | AN189: 116.8 | AO189: 145.41 | AP189: 200.75
P190: 11 | Q190: M1STRS89NOVLOAD | AE190: M1STRS89MAYLOAD | AF190: 138.43 | AG190: 124.66 | AH190: 175.46 | AI190: 211.66 | AJ190: 137.25 | AK190: 143.51 | AL190: 137.35 | AM190: 137.42 | AN190: 127.5 | AO190: 134.9 | AP190: 216.51
P191: 12 | Q191: M1STRS89DECLOAD | AE191: M1STRS89JUNLOAD | AF191: 140.65 | AG191: 127.47 | AH191: 194.69 | AI191: 211.09 | AJ191: 138.86 | AK191: 150.92 | AL191: 147.54 | AM191: 137.43 | AN191: 132.5 | AO191: 152 | AP191: 239.01
AE192: M1STRS89JULLOAD | AF192: 129.15 | AG192: 136.83 | AH192: 210.67 | AI192: 208.89 | AJ192: 135.15 | AK192: 148.58 | AL192: 151.81 | AM192: 142.28 | AN192: 136.58 | AO192: 158.25 | AP192: 245.94
AE193: M1STRS89AUGLOAD | AF193: 128.09 | AG193: 143.24 | AH193: 211.16 | AI193: 202.03 | AJ193: 139.05 | AK193: 146.85 | AL193: 149.34 | AM193: 136.36 | AN193: 143.3 | AO193: 158.58 | AP193: 248.02
AE194: M1STRS89SEPLOAD | AF194: 132.64 | AG194: 142.9 | AH194: 211.34 | AI194: 184.85 | AJ194: 128.2 | AK194: 146.33 | AL194: 152.85 | AM194: 137.41 | AN194: 137.71 | AO194: 158.16 | AP194: 253.61
AE195: M1STRS89OCTLOAD | AF195: 135.03 | AG195: 151.88 | AH195: 225.19 | AI195: 172.91 | AJ195: 116.1 | AK195: 153.52 | AL195: 156.8 | AM195: 142.73 | AN195: 140.48 | AO195: 157.73 | AP195: 246.81
P196: 1 | Q196: M1STRS78JAN | AE196: M1STRS89NOVLOAD | AF196: 137.63 | AG196: 156.25 | AH196: 224.72 | AI196: 170.98 | AJ196: 124.23 | AK196: 158.24 | AL196: 150.23 | AM196: 146.38 | AN196: 137.52 | AO196: 158.02 | AP196: 232.8
P197: 2 | Q197: M1STRS78FEB | AE197: M1STRS89DECLOAD | AF197: 137.27 | AG197: 153.76 | AH197: 218.4 | AI197: 144.96 | AJ197: 124.53 | AK197: 145.99 | AL197: 146.12 | AM197: 140.88 | AN197: 140.15 | AO197: 165.41 | AP197: 214.35
P198: 3 | Q198: M1STRS78MAR
P199: 4 | Q199: M1STRS78APR | AE199: M1HFRS78FEBLOAD | AF199: 114.5772727 | AG199: 140.8916667 | AH199: 126.54375 | AI199: 143.65 | AJ199: 173.3333333 | AK199: 130 | AL199: 128.41 | AM199: 146.83 | AN199: 143.37 | AO199: 136.32 | AP199: 139.27 | AS199: 2 | AT199: M1HFRS78FEBLOAD | AU199: 114.5772727 | AV199: 140.8916667 | AW199: 126.54375 | AX199: 143.65 | AY199: 173.3333333 | AZ199: 130 | BA199: 128.41 | BB199: 146.83 | BC199: 143.37 | BD199: 136.32 | BE199: 139.27
P200: 5 | Q200: M1STRS78MAY | AE200: M1HFRS78MAYLOAD | AF200: 117.8520833 | AG200: 135.5125 | AH200: 120.6321429 | AI200: 169.0625 | AJ200: 205.75 | AK200: 124.13 | AL200: 140.37 | AM200: 139.99 | AN200: 138.3 | AO200: 130.27 | AP200: 147.74 | AS200: 5 | AT200: M1HFRS78MAYLOAD | AU200: 117.8520833 | AV200: 135.5125 | AW200: 120.6321429 | AX200: 169.0625 | AY200: 205.75 | AZ200: 124.13 | BA200: 140.37 | BB200: 139.99 | BC200: 138.3 | BD200: 130.27
P201: 6 | Q201: M1STRS78JUN | AE201: M1HFRS78AUGLOAD | AF201: 120.173 | AG201: 126.9458333 | AH201: 137.7 | AI201: 203 | AJ201: 200.3125 | AK201: 135.6 | AL201: 144.64 | AM201: 150.13 | AN201: 139.94 | AO201: 143.36 | AP201: 157.65 | AS201: 8 | AT201: M1HFRS78AUGLOAD | AU201: 120.173 | AV201: 126.9458333 | AW201: 137.7 | AX201: 203 | AY201: 200.3125 | AZ201: 135.6 | BA201: 144.64 | BB201: 150.13 | BC201: 139.94 | BD201: 143.36 | BE201: 157.65
... 63 more rows
